Workbook

Sheet Amortizacija kalorija
B1: RASPORED AMORTIZACIJE KALORIJA
B2: =IFERROR(CONCATENATE("SAMO",DATEDIF(DatumPočetka,CiljniDatum,"m")," MESECA I ", DATEDIF(DatumPočetka,CiljniDatum,"md"),BrojDana),"") -> SAMO3 MESECA I 14 DANI | H2: =IF(CiljnaTelesnaTežina="SMANJI","Ne preporučuje se da smanjite unos kalorija za više od 1000 kalorija ispod dnevnih kalorijskih potreba ili da unosite manje od " & IF(Pol="ŽENSKI","1200 kalorija dnevno.","1800 kalorija dnevno."),"") -> Ne preporučuje se da smanjite unos kalorija za više od 1000 kalorija ispod dnevnih kalorijskih potreba ili da unosite manje od 1200 kalorija dnevno.
B3: =IF(CiljnaTelesnaTežina="Održavanje",""," DOK NE DOSTIGNETE CILJ!") -> DOK NE DOSTIGNETE CILJ! | H3: =IF(CiljnaTelesnaTežina="Održavanje","",CONCATENATE("Ciljni datum se zasniva na preporučenom prosečnom gubitku težine u ",IF(CiljnaTelesnaTežina="SMANJI","iznosu ","dobitak "),"od ",IF(JedinicaMere="IMPERIJALNE MERNE JEDINICE","0,45 kg",",45 k")," sedmično.")) -> Ciljni datum se zasniva na preporučenom prosečnom gubitku težine u iznosu od 0,45 kg sedmično.
B4: NIVO AKTIVNOSTI | H4: SISTEM MERENJA | J4: TRENUTNA TEŽINA | L4: UZRAST
B5: UMERENA AKTIVNOST | E5: =VLOOKUP(Nivo,TipoviVežbanja[],2,FALSE) -> VEŽBANJE 3–5 DANA SEDMIČNO | H5: IMPERIJALNE MERNE JEDINICE | J5: 150.0 | L5: 34
B6: ŽELIM DA SE MOJA TEŽINA | H6: =IF(Standardno,"VISINA U STOPAMA","VISINA U METRIMA") -> VISINA U STOPAMA | I6: =IF(Standardno,"INČI","CENTIMETRI") -> INČI | J6: CILJNA TEŽINA | L6: POL
B7: SMANJI | H7: 5 | I7: 5.0 | J7: 135.0 | L7: ŽENSKI
B8: CILJNI DATUM POČETKA | E8: CILJNI DATUM | H8: POČETNE DNEVNE POTREBE ZA KALORIJAMA | J8: POČETNI DNEVNI UNOS KALORIJA | L8: =IF(CiljnaTelesnaTežina="Povećaj","POTREBAN VIŠAK KALORIJA","KALORIJA KOJE TREBA SAGORETI") -> KALORIJA KOJE TREBA SAGORETI
B9: =TODAY()-5 -> 2022-08-18 | E9: =IF(CiljnaTelesnaTežina="Održavanje","",IF(AND(SveDovršeno,B12<>""),MAX(B11:B998),"Ciljni datum ne može da bude manji od datuma početka. Proverite unose.")) -> 2022-12-02 | H9: =IF(SveDovršeno,BMR*FaktorAktivnosti,"") -> 2252 | J9: =IF(SveDovršeno,BMR*FaktorAktivnosti+IF(CiljnaTelesnaTežina="Održavanje",0,IF(CiljnaTelesnaTežina="SMANJI",-500,IF(CiljnaTelesnaTežina="Povećaj",500))),"") -> 1752 | L9: =IF(CiljnaTelesnaTežina="Održavanje","",(TežinaKojuTrebaIzgubitiPovećati)*IF(Standardno,1,2.2)*3500) -> 52500
B10: DATUM | C10: SEDMICA | D10: DAN | E10: TELESNA TEŽINA | F10: BMR | G10: BROJ KONZUMIRANIH KALORIJA | H10: BROJ SAGORELIH KALORIJA | I10: =IF(CiljnaTelesnaTežina="Povećaj", "DODATNE KAL.","NEDOSTATAK KAL.") -> NEDOSTATAK KAL. | J10: BROJ PREOSTALIH KALORIJA | K10: =IF(JedinicaMere="IMPERIJALNE MERNE JEDINICE","PREOSTALO LBS","PREOSTALO KG") -> PREOSTALO LBS | L10: =IF(CiljnaTelesnaTežina="Povećaj","DOBITAK","GUBITAK") -> GUBITAK | M10: % CILJA
B11: =IFERROR(IF(Održavanje,"",DatumPočetka), "") -> 2022-08-18 | C11: =IFERROR(IF(Održavanje,"",1), "") -> 1 | D11: =IFERROR(IF(AND(ISNUMBER(J11),J11>0),1,""), "") -> 1 | E11: =IFERROR(IF(Održavanje,"",Težina), "") -> 150.0 | F11: =IFERROR(IF(Održavanje,"",IF(E11>0,BMRPrilikomTrčanja,"")), "") -> 1453 | G11: =IFERROR(IF(Održavanje,"",PočetniUnosKalorija), "") -> 1752 | H11: =IFERROR(F11*(FaktorAktivnosti),"") -> 2252 | I11: =IFERROR(IF(CiljnaTelesnaTežina="Povećaj",G11-H11,H11-G11),"") -> 500 | J11: =IFERROR(L9, "") -> 52500 | K11: =IFERROR(IF(Standardno,J11/KalPoFunti,J11/KalPoFunti/2.2),"") -> 15.0 | L11: =IFERROR(TežinaKojuTrebaIzgubitiPovećati-K11,"") -> 0.00 | M11: =IFERROR(IF(Održavanje,"",0%), "") -> 0%
B12: =IFERROR(IF(K11>0,B11+1,""),"") -> 2022-08-19 | C12: =IFERROR(IF(D12<>"",IF(MOD(D12,7)=1,(D11/7)+1,""),""),"") ->  | D12: =IFERROR(IF(K11>0,D11+1,""),"") -> 2 | E12: =IFERROR(IF($D12<>"",E11-(I11/KalPoFunti),""),"") -> 149.9 | F12: =IFERROR(BMRPrilikomTrčanja,"") -> 1453 | G12: =IFERROR(IF(K11>0,F11*FaktorAktivnosti+IF(CiljnaTelesnaTežina="Održavanje",0,IF(CiljnaTelesnaTežina="SMANJI",-500,IF(CiljnaTelesnaTežina="Povećaj",500))),""),"") -> 1752 | H12: =IFERROR(F12*(FaktorAktivnosti),"") -> 2251 | I12: 499 | J12: =IFERROR(J11-I12,"") -> 52001 | K12: =IFERROR(IF(Standardno,J12/KalPoFunti,J12/KalPoFunti/2.2),"") -> 14.9 | L12: =IFERROR(TežinaKojuTrebaIzgubitiPovećati-K12,"") -> 0.14 | M12: =IFERROR(IF(B11<>"",L12/(TežinaKojuTrebaIzgubitiPovećati),""),"") -> 1%
B13: 2022-08-20 | C13: =IFERROR(IF(D13<>"",IF(MOD(D13,7)=1,(D12/7)+1,""),""),"") ->  | D13: 3 | E13: 149.7 | F13: =IFERROR(BMRPrilikomTrčanja,"") -> 1452 | G13: =IFERROR(IF(K12>0,F12*FaktorAktivnosti+IF(CiljnaTelesnaTežina="Održavanje",0,IF(CiljnaTelesnaTežina="SMANJI",-500,IF(CiljnaTelesnaTežina="Povećaj",500))),""),"") -> 1751 | H13: =IFERROR(F13*(FaktorAktivnosti),"") -> 2251 | I13: 499 | J13: =IFERROR(J12-I13,"") -> 51502 | K13: =IFERROR(IF(Standardno,J13/KalPoFunti,J13/KalPoFunti/2.2),"") -> 14.7 | L13: =IFERROR(TežinaKojuTrebaIzgubitiPovećati-K13,"") -> 0.29 | M13: =IFERROR(IF(B12<>"",L13/(TežinaKojuTrebaIzgubitiPovećati),""),"") -> 2%
B14: 2022-08-21 | D14: 4 | E14: 149.6 | F14: =IFERROR(BMRPrilikomTrčanja,"") -> 1451 | G14: =IFERROR(IF(K13>0,F13*FaktorAktivnosti+IF(CiljnaTelesnaTežina="Održavanje",0,IF(CiljnaTelesnaTežina="SMANJI",-500,IF(CiljnaTelesnaTežina="Povećaj",500))),""),"") -> 1751 | H14: =IFERROR(F14*(FaktorAktivnosti),"") -> 2250 | I14: 499 | J14: 51003 | K14: =IFERROR(IF(Standardno,J14/KalPoFunti,J14/KalPoFunti/2.2),"") -> 14.6 | L14: =IFERROR(TežinaKojuTrebaIzgubitiPovećati-K14,"") -> 0.43 | M14: =IFERROR(IF(B13<>"",L14/(TežinaKojuTrebaIzgubitiPovećati),""),"") -> 3%
B15: 2022-08-22 | D15: 5 | E15: 149.4 | F15: =IFERROR(BMRPrilikomTrčanja,"") -> 1451 | G15: =IFERROR(IF(K14>0,F14*FaktorAktivnosti+IF(CiljnaTelesnaTežina="Održavanje",0,IF(CiljnaTelesnaTežina="SMANJI",-500,IF(CiljnaTelesnaTežina="Povećaj",500))),""),"") -> 1750 | H15: =IFERROR(F15*(FaktorAktivnosti),"") -> 2249 | I15: 499 | J15: 50504 | K15: =IFERROR(IF(Standardno,J15/KalPoFunti,J15/KalPoFunti/2.2),"") -> 14.4 | L15: =IFERROR(TežinaKojuTrebaIzgubitiPovećati-K15,"") -> 0.57 | M15: =IFERROR(IF(B14<>"",L15/(TežinaKojuTrebaIzgubitiPovećati),""),"") -> 4%
B16: 2022-08-23 | D16: 6 | E16: 149.3 | F16: =IFERROR(BMRPrilikomTrčanja,"") -> 1450 | G16: =IFERROR(IF(K15>0,F15*FaktorAktivnosti+IF(CiljnaTelesnaTežina="Održavanje",0,IF(CiljnaTelesnaTežina="SMANJI",-500,IF(CiljnaTelesnaTežina="Povećaj",500))),""),"") -> 1749 | H16: =IFERROR(F16*(FaktorAktivnosti),"") -> 2248 | I16: 499 | J16: 50005 | K16: =IFERROR(IF(Standardno,J16/KalPoFunti,J16/KalPoFunti/2.2),"") -> 14.3 | L16: =IFERROR(TežinaKojuTrebaIzgubitiPovećati-K16,"") -> 0.71 | M16: =IFERROR(IF(B15<>"",L16/(TežinaKojuTrebaIzgubitiPovećati),""),"") -> 5%
B17: 2022-08-24 | D17: 7 | E17: 149.1 | F17: =IFERROR(BMRPrilikomTrčanja,"") -> 1449 | G17: =IFERROR(IF(K16>0,F16*FaktorAktivnosti+IF(CiljnaTelesnaTežina="Održavanje",0,IF(CiljnaTelesnaTežina="SMANJI",-500,IF(CiljnaTelesnaTežina="Povećaj",500))),""),"") -> 1748 | H17: =IFERROR(F17*(FaktorAktivnosti),"") -> 2247 | I17: 499 | J17: 49506 | K17: =IFERROR(IF(Standardno,J17/KalPoFunti,J17/KalPoFunti/2.2),"") -> 14.1 | L17: =IFERROR(TežinaKojuTrebaIzgubitiPovećati-K17,"") -> 0.86 | M17: =IFERROR(IF(B16<>"",L17/(TežinaKojuTrebaIzgubitiPovećati),""),"") -> 6%
B18: 2022-08-25 | C18: 2 | D18: 8 | E18: 149.0 | F18: =IFERROR(BMRPrilikomTrčanja,"") -> 1449 | G18: =IFERROR(IF(K17>0,F17*FaktorAktivnosti+IF(CiljnaTelesnaTežina="Održavanje",0,IF(CiljnaTelesnaTežina="SMANJI",-500,IF(CiljnaTelesnaTežina="Povećaj",500))),""),"") -> 1747 | H18: =IFERROR(F18*(FaktorAktivnosti),"") -> 2246 | I18: 499 | J18: 49007 | K18: =IFERROR(IF(Standardno,J18/KalPoFunti,J18/KalPoFunti/2.2),"") -> 14.0 | L18: =IFERROR(TežinaKojuTrebaIzgubitiPovećati-K18,"") -> 1.00 | M18: =IFERROR(IF(B17<>"",L18/(TežinaKojuTrebaIzgubitiPovećati),""),"") -> 7%
B19: 2022-08-26 | D19: 9 | E19: 148.9 | F19: =IFERROR(BMRPrilikomTrčanja,"") -> 1448 | G19: =IFERROR(IF(K18>0,F18*FaktorAktivnosti+IF(CiljnaTelesnaTežina="Održavanje",0,IF(CiljnaTelesnaTežina="SMANJI",-500,IF(CiljnaTelesnaTežina="Povećaj",500))),""),"") -> 1746 | H19: =IFERROR(F19*(FaktorAktivnosti),"") -> 2245 | I19: 499 | J19: 48508 | K19: =IFERROR(IF(Standardno,J19/KalPoFunti,J19/KalPoFunti/2.2),"") -> 13.9 | L19: =IFERROR(TežinaKojuTrebaIzgubitiPovećati-K19,"") -> 1.14 | M19: =IFERROR(IF(B18<>"",L19/(TežinaKojuTrebaIzgubitiPovećati),""),"") -> 8%
B20: 2022-08-27 | D20: 10 | E20: 148.7 | F20: =IFERROR(BMRPrilikomTrčanja,"") -> 1448 | G20: =IFERROR(IF(K19>0,F19*FaktorAktivnosti+IF(CiljnaTelesnaTežina="Održavanje",0,IF(CiljnaTelesnaTežina="SMANJI",-500,IF(CiljnaTelesnaTežina="Povećaj",500))),""),"") -> 1745 | H20: =IFERROR(F20*(FaktorAktivnosti),"") -> 2244 | I20: 499 | J20: 48009 | K20: =IFERROR(IF(Standardno,J20/KalPoFunti,J20/KalPoFunti/2.2),"") -> 13.7 | L20: =IFERROR(TežinaKojuTrebaIzgubitiPovećati-K20,"") -> 1.28 | M20: =IFERROR(IF(B19<>"",L20/(TežinaKojuTrebaIzgubitiPovećati),""),"") -> 9%
B21: 2022-08-28 | D21: 11 | E21: 148.6 | F21: =IFERROR(BMRPrilikomTrčanja,"") -> 1447 | G21: =IFERROR(IF(K20>0,F20*FaktorAktivnosti+IF(CiljnaTelesnaTežina="Održavanje",0,IF(CiljnaTelesnaTežina="SMANJI",-500,IF(CiljnaTelesnaTežina="Povećaj",500))),""),"") -> 1744 | H21: =IFERROR(F21*(FaktorAktivnosti),"") -> 2243 | I21: 499 | J21: 47510 | K21: =IFERROR(IF(Standardno,J21/KalPoFunti,J21/KalPoFunti/2.2),"") -> 13.6 | L21: =IFERROR(TežinaKojuTrebaIzgubitiPovećati-K21,"") -> 1.43 | M21: =IFERROR(IF(B20<>"",L21/(TežinaKojuTrebaIzgubitiPovećati),""),"") -> 10%
B22: 2022-08-29 | D22: 12 | E22: 148.4 | F22: =IFERROR(BMRPrilikomTrčanja,"") -> 1446 | G22: =IFERROR(IF(K21>0,F21*FaktorAktivnosti+IF(CiljnaTelesnaTežina="Održavanje",0,IF(CiljnaTelesnaTežina="SMANJI",-500,IF(CiljnaTelesnaTežina="Povećaj",500))),""),"") -> 1743 | H22: =IFERROR(F22*(FaktorAktivnosti),"") -> 2242 | I22: 499 | J22: 47011 | K22: =IFERROR(IF(Standardno,J22/KalPoFunti,J22/KalPoFunti/2.2),"") -> 13.4 | L22: =IFERROR(TežinaKojuTrebaIzgubitiPovećati-K22,"") -> 1.57 | M22: =IFERROR(IF(B21<>"",L22/(TežinaKojuTrebaIzgubitiPovećati),""),"") -> 10%
B23: 2022-08-30 | D23: 13 | E23: 148.3 | F23: =IFERROR(BMRPrilikomTrčanja,"") -> 1446 | G23: =IFERROR(IF(K22>0,F22*FaktorAktivnosti+IF(CiljnaTelesnaTežina="Održavanje",0,IF(CiljnaTelesnaTežina="SMANJI",-500,IF(CiljnaTelesnaTežina="Povećaj",500))),""),"") -> 1742 | H23: =IFERROR(F23*(FaktorAktivnosti),"") -> 2241 | I23: 499 | J23: 46512 | K23: =IFERROR(IF(Standardno,J23/KalPoFunti,J23/KalPoFunti/2.2),"") -> 13.3 | L23: =IFERROR(TežinaKojuTrebaIzgubitiPovećati-K23,"") -> 1.71 | M23: =IFERROR(IF(B22<>"",L23/(TežinaKojuTrebaIzgubitiPovećati),""),"") -> 11%
B24: 2022-08-31 | D24: 14 | E24: 148.1 | F24: =IFERROR(BMRPrilikomTrčanja,"") -> 1445 | G24: =IFERROR(IF(K23>0,F23*FaktorAktivnosti+IF(CiljnaTelesnaTežina="Održavanje",0,IF(CiljnaTelesnaTežina="SMANJI",-500,IF(CiljnaTelesnaTežina="Povećaj",500))),""),"") -> 1741 | H24: =IFERROR(F24*(FaktorAktivnosti),"") -> 2240 | I24: 499 | J24: 46012 | K24: =IFERROR(IF(Standardno,J24/KalPoFunti,J24/KalPoFunti/2.2),"") -> 13.1 | L24: =IFERROR(TežinaKojuTrebaIzgubitiPovećati-K24,"") -> 1.85 | M24: =IFERROR(IF(B23<>"",L24/(TežinaKojuTrebaIzgubitiPovećati),""),"") -> 12%
B25: 2022-09-01 | C25: 3 | D25: 15 | E25: 148.0 | F25: =IFERROR(BMRPrilikomTrčanja,"") -> 1445 | G25: =IFERROR(IF(K24>0,F24*FaktorAktivnosti+IF(CiljnaTelesnaTežina="Održavanje",0,IF(CiljnaTelesnaTežina="SMANJI",-500,IF(CiljnaTelesnaTežina="Povećaj",500))),""),"") -> 1740 | H25: =IFERROR(F25*(FaktorAktivnosti),"") -> 2239 | I25: 499 | J25: 45513 | K25: =IFERROR(IF(Standardno,J25/KalPoFunti,J25/KalPoFunti/2.2),"") -> 13.0 | L25: =IFERROR(TežinaKojuTrebaIzgubitiPovećati-K25,"") -> 2.00 | M25: =IFERROR(IF(B24<>"",L25/(TežinaKojuTrebaIzgubitiPovećati),""),"") -> 13%
B26: 2022-09-02 | D26: 16 | E26: 147.9 | F26: =IFERROR(BMRPrilikomTrčanja,"") -> 1444 | G26: =IFERROR(IF(K25>0,F25*FaktorAktivnosti+IF(CiljnaTelesnaTežina="Održavanje",0,IF(CiljnaTelesnaTežina="SMANJI",-500,IF(CiljnaTelesnaTežina="Povećaj",500))),""),"") -> 1739 | H26: =IFERROR(F26*(FaktorAktivnosti),"") -> 2238 | I26: 499 | J26: 45014 | K26: =IFERROR(IF(Standardno,J26/KalPoFunti,J26/KalPoFunti/2.2),"") -> 12.9 | L26: =IFERROR(TežinaKojuTrebaIzgubitiPovećati-K26,"") -> 2.14 | M26: =IFERROR(IF(B25<>"",L26/(TežinaKojuTrebaIzgubitiPovećati),""),"") -> 14%
B27: 2022-09-03 | D27: 17 | E27: 147.7 | F27: =IFERROR(BMRPrilikomTrčanja,"") -> 1443 | G27: =IFERROR(IF(K26>0,F26*FaktorAktivnosti+IF(CiljnaTelesnaTežina="Održavanje",0,IF(CiljnaTelesnaTežina="SMANJI",-500,IF(CiljnaTelesnaTežina="Povećaj",500))),""),"") -> 1738 | H27: =IFERROR(F27*(FaktorAktivnosti),"") -> 2237 | I27: 499 | J27: 44515 | K27: =IFERROR(IF(Standardno,J27/KalPoFunti,J27/KalPoFunti/2.2),"") -> 12.7 | L27: =IFERROR(TežinaKojuTrebaIzgubitiPovećati-K27,"") -> 2.28 | M27: =IFERROR(IF(B26<>"",L27/(TežinaKojuTrebaIzgubitiPovećati),""),"") -> 15%
B28: 2022-09-04 | D28: 18 | E28: 147.6 | F28: =IFERROR(BMRPrilikomTrčanja,"") -> 1443 | G28: =IFERROR(IF(K27>0,F27*FaktorAktivnosti+IF(CiljnaTelesnaTežina="Održavanje",0,IF(CiljnaTelesnaTežina="SMANJI",-500,IF(CiljnaTelesnaTežina="Povećaj",500))),""),"") -> 1737 | H28: =IFERROR(F28*(FaktorAktivnosti),"") -> 2236 | I28: 499 | J28: 44016 | K28: =IFERROR(IF(Standardno,J28/KalPoFunti,J28/KalPoFunti/2.2),"") -> 12.6 | L28: =IFERROR(TežinaKojuTrebaIzgubitiPovećati-K28,"") -> 2.42 | M28: =IFERROR(IF(B27<>"",L28/(TežinaKojuTrebaIzgubitiPovećati),""),"") -> 16%
B29: 2022-09-05 | D29: 19 | E29: 147.4 | F29: =IFERROR(BMRPrilikomTrčanja,"") -> 1442 | G29: =IFERROR(IF(K28>0,F28*FaktorAktivnosti+IF(CiljnaTelesnaTežina="Održavanje",0,IF(CiljnaTelesnaTežina="SMANJI",-500,IF(CiljnaTelesnaTežina="Povećaj",500))),""),"") -> 1736 | H29: =IFERROR(F29*(FaktorAktivnosti),"") -> 2235 | I29: 499 | J29: 43517 | K29: =IFERROR(IF(Standardno,J29/KalPoFunti,J29/KalPoFunti/2.2),"") -> 12.4 | L29: =IFERROR(TežinaKojuTrebaIzgubitiPovećati-K29,"") -> 2.57 | M29: =IFERROR(IF(B28<>"",L29/(TežinaKojuTrebaIzgubitiPovećati),""),"") -> 17%
B30: 2022-09-06 | D30: 20 | E30: 147.3 | F30: =IFERROR(BMRPrilikomTrčanja,"") -> 1441 | G30: =IFERROR(IF(K29>0,F29*FaktorAktivnosti+IF(CiljnaTelesnaTežina="Održavanje",0,IF(CiljnaTelesnaTežina="SMANJI",-500,IF(CiljnaTelesnaTežina="Povećaj",500))),""),"") -> 1735 | H30: =IFERROR(F30*(FaktorAktivnosti),"") -> 2234 | I30: 499 | J30: 43018 | K30: =IFERROR(IF(Standardno,J30/KalPoFunti,J30/KalPoFunti/2.2),"") -> 12.3 | L30: =IFERROR(TežinaKojuTrebaIzgubitiPovećati-K30,"") -> 2.71 | M30: =IFERROR(IF(B29<>"",L30/(TežinaKojuTrebaIzgubitiPovećati),""),"") -> 18%
B31: 2022-09-07 | D31: 21 | E31: 147.1 | F31: =IFERROR(BMRPrilikomTrčanja,"") -> 1441 | G31: =IFERROR(IF(K30>0,F30*FaktorAktivnosti+IF(CiljnaTelesnaTežina="Održavanje",0,IF(CiljnaTelesnaTežina="SMANJI",-500,IF(CiljnaTelesnaTežina="Povećaj",500))),""),"") -> 1734 | H31: =IFERROR(F31*(FaktorAktivnosti),"") -> 2233 | I31: 499 | J31: 42519 | K31: =IFERROR(IF(Standardno,J31/KalPoFunti,J31/KalPoFunti/2.2),"") -> 12.1 | L31: =IFERROR(TežinaKojuTrebaIzgubitiPovećati-K31,"") -> 2.85 | M31: =IFERROR(IF(B30<>"",L31/(TežinaKojuTrebaIzgubitiPovećati),""),"") -> 19%
B32: 2022-09-08 | C32: 4 | D32: 22 | E32: 147.0 | F32: =IFERROR(BMRPrilikomTrčanja,"") -> 1440 | G32: =IFERROR(IF(K31>0,F31*FaktorAktivnosti+IF(CiljnaTelesnaTežina="Održavanje",0,IF(CiljnaTelesnaTežina="SMANJI",-500,IF(CiljnaTelesnaTežina="Povećaj",500))),""),"") -> 1733 | H32: =IFERROR(F32*(FaktorAktivnosti),"") -> 2232 | I32: 499 | J32: 42020 | K32: =IFERROR(IF(Standardno,J32/KalPoFunti,J32/KalPoFunti/2.2),"") -> 12.0 | L32: =IFERROR(TežinaKojuTrebaIzgubitiPovećati-K32,"") -> 2.99 | M32: =IFERROR(IF(B31<>"",L32/(TežinaKojuTrebaIzgubitiPovećati),""),"") -> 20%
B33: 2022-09-09 | D33: 23 | E33: 146.9 | F33: =IFERROR(BMRPrilikomTrčanja,"") -> 1440 | G33: =IFERROR(IF(K32>0,F32*FaktorAktivnosti+IF(CiljnaTelesnaTežina="Održavanje",0,IF(CiljnaTelesnaTežina="SMANJI",-500,IF(CiljnaTelesnaTežina="Povećaj",500))),""),"") -> 1732 | H33: =IFERROR(F33*(FaktorAktivnosti),"") -> 2231 | I33: 499 | J33: 41521 | K33: =IFERROR(IF(Standardno,J33/KalPoFunti,J33/KalPoFunti/2.2),"") -> 11.9 | L33: =IFERROR(TežinaKojuTrebaIzgubitiPovećati-K33,"") -> 3.14 | M33: =IFERROR(IF(B32<>"",L33/(TežinaKojuTrebaIzgubitiPovećati),""),"") -> 21%
B34: 2022-09-10 | D34: 24 | E34: 146.7 | F34: =IFERROR(BMRPrilikomTrčanja,"") -> 1439 | G34: =IFERROR(IF(K33>0,F33*FaktorAktivnosti+IF(CiljnaTelesnaTežina="Održavanje",0,IF(CiljnaTelesnaTežina="SMANJI",-500,IF(CiljnaTelesnaTežina="Povećaj",500))),""),"") -> 1731 | H34: =IFERROR(F34*(FaktorAktivnosti),"") -> 2230 | I34: 499 | J34: 41022 | K34: =IFERROR(IF(Standardno,J34/KalPoFunti,J34/KalPoFunti/2.2),"") -> 11.7 | L34: =IFERROR(TežinaKojuTrebaIzgubitiPovećati-K34,"") -> 3.28 | M34: =IFERROR(IF(B33<>"",L34/(TežinaKojuTrebaIzgubitiPovećati),""),"") -> 22%
B35: 2022-09-11 | D35: 25 | E35: 146.6 | F35: =IFERROR(BMRPrilikomTrčanja,"") -> 1438 | G35: =IFERROR(IF(K34>0,F34*FaktorAktivnosti+IF(CiljnaTelesnaTežina="Održavanje",0,IF(CiljnaTelesnaTežina="SMANJI",-500,IF(CiljnaTelesnaTežina="Povećaj",500))),""),"") -> 1730 | H35: =IFERROR(F35*(FaktorAktivnosti),"") -> 2229 | I35: 499 | J35: 40523 | K35: =IFERROR(IF(Standardno,J35/KalPoFunti,J35/KalPoFunti/2.2),"") -> 11.6 | L35: =IFERROR(TežinaKojuTrebaIzgubitiPovećati-K35,"") -> 3.42 | M35: =IFERROR(IF(B34<>"",L35/(TežinaKojuTrebaIzgubitiPovećati),""),"") -> 23%
B36: 2022-09-12 | D36: 26 | E36: 146.4 | F36: =IFERROR(BMRPrilikomTrčanja,"") -> 1438 | G36: =IFERROR(IF(K35>0,F35*FaktorAktivnosti+IF(CiljnaTelesnaTežina="Održavanje",0,IF(CiljnaTelesnaTežina="SMANJI",-500,IF(CiljnaTelesnaTežina="Povećaj",500))),""),"") -> 1729 | H36: =IFERROR(F36*(FaktorAktivnosti),"") -> 2228 | I36: 499 | J36: 40024 | K36: =IFERROR(IF(Standardno,J36/KalPoFunti,J36/KalPoFunti/2.2),"") -> 11.4 | L36: =IFERROR(TežinaKojuTrebaIzgubitiPovećati-K36,"") -> 3.56 | M36: =IFERROR(IF(B35<>"",L36/(TežinaKojuTrebaIzgubitiPovećati),""),"") -> 24%
B37: 2022-09-13 | D37: 27 | E37: 146.3 | F37: =IFERROR(BMRPrilikomTrčanja,"") -> 1437 | G37: =IFERROR(IF(K36>0,F36*FaktorAktivnosti+IF(CiljnaTelesnaTežina="Održavanje",0,IF(CiljnaTelesnaTežina="SMANJI",-500,IF(CiljnaTelesnaTežina="Povećaj",500))),""),"") -> 1728 | H37: =IFERROR(F37*(FaktorAktivnosti),"") -> 2227 | I37: 499 | J37: 39525 | K37: =IFERROR(IF(Standardno,J37/KalPoFunti,J37/KalPoFunti/2.2),"") -> 11.3 | L37: =IFERROR(TežinaKojuTrebaIzgubitiPovećati-K37,"") -> 3.71 | M37: =IFERROR(IF(B36<>"",L37/(TežinaKojuTrebaIzgubitiPovećati),""),"") -> 25%
B38: 2022-09-14 | D38: 28 | E38: 146.1 | F38: =IFERROR(BMRPrilikomTrčanja,"") -> 1436 | G38: =IFERROR(IF(K37>0,F37*FaktorAktivnosti+IF(CiljnaTelesnaTežina="Održavanje",0,IF(CiljnaTelesnaTežina="SMANJI",-500,IF(CiljnaTelesnaTežina="Povećaj",500))),""),"") -> 1727 | H38: =IFERROR(F38*(FaktorAktivnosti),"") -> 2227 | I38: 499 | J38: 39026 | K38: =IFERROR(IF(Standardno,J38/KalPoFunti,J38/KalPoFunti/2.2),"") -> 11.2 | L38: =IFERROR(TežinaKojuTrebaIzgubitiPovećati-K38,"") -> 3.85 | M38: =IFERROR(IF(B37<>"",L38/(TežinaKojuTrebaIzgubitiPovećati),""),"") -> 26%
B39: 2022-09-15 | C39: 5 | D39: 29 | E39: 146.0 | F39: =IFERROR(BMRPrilikomTrčanja,"") -> 1436 | G39: =IFERROR(IF(K38>0,F38*FaktorAktivnosti+IF(CiljnaTelesnaTežina="Održavanje",0,IF(CiljnaTelesnaTežina="SMANJI",-500,IF(CiljnaTelesnaTežina="Povećaj",500))),""),"") -> 1727 | H39: =IFERROR(F39*(FaktorAktivnosti),"") -> 2226 | I39: 499 | J39: 38527 | K39: =IFERROR(IF(Standardno,J39/KalPoFunti,J39/KalPoFunti/2.2),"") -> 11.0 | L39: =IFERROR(TežinaKojuTrebaIzgubitiPovećati-K39,"") -> 3.99 | M39: =IFERROR(IF(B38<>"",L39/(TežinaKojuTrebaIzgubitiPovećati),""),"") -> 27%
B40: 2022-09-16 | D40: 30 | E40: 145.9 | F40: =IFERROR(BMRPrilikomTrčanja,"") -> 1435 | G40: =IFERROR(IF(K39>0,F39*FaktorAktivnosti+IF(CiljnaTelesnaTežina="Održavanje",0,IF(CiljnaTelesnaTežina="SMANJI",-500,IF(CiljnaTelesnaTežina="Povećaj",500))),""),"") -> 1726 | H40: =IFERROR(F40*(FaktorAktivnosti),"") -> 2225 | I40: 499 | J40: 38028 | K40: =IFERROR(IF(Standardno,J40/KalPoFunti,J40/KalPoFunti/2.2),"") -> 10.9 | L40: =IFERROR(TežinaKojuTrebaIzgubitiPovećati-K40,"") -> 4.13 | M40: =IFERROR(IF(B39<>"",L40/(TežinaKojuTrebaIzgubitiPovećati),""),"") -> 28%
B41: 2022-09-17 | D41: 31 | E41: 145.7 | F41: =IFERROR(BMRPrilikomTrčanja,"") -> 1435 | G41: =IFERROR(IF(K40>0,F40*FaktorAktivnosti+IF(CiljnaTelesnaTežina="Održavanje",0,IF(CiljnaTelesnaTežina="SMANJI",-500,IF(CiljnaTelesnaTežina="Povećaj",500))),""),"") -> 1725 | H41: =IFERROR(F41*(FaktorAktivnosti),"") -> 2224 | I41: 499 | J41: 37529 | K41: =IFERROR(IF(Standardno,J41/KalPoFunti,J41/KalPoFunti/2.2),"") -> 10.7 | L41: =IFERROR(TežinaKojuTrebaIzgubitiPovećati-K41,"") -> 4.28 | M41: =IFERROR(IF(B40<>"",L41/(TežinaKojuTrebaIzgubitiPovećati),""),"") -> 29%
B42: 2022-09-18 | D42: 32 | E42: 145.6 | F42: =IFERROR(BMRPrilikomTrčanja,"") -> 1434 | G42: =IFERROR(IF(K41>0,F41*FaktorAktivnosti+IF(CiljnaTelesnaTežina="Održavanje",0,IF(CiljnaTelesnaTežina="SMANJI",-500,IF(CiljnaTelesnaTežina="Povećaj",500))),""),"") -> 1724 | H42: =IFERROR(F42*(FaktorAktivnosti),"") -> 2223 | I42: 499 | J42: 37030 | K42: =IFERROR(IF(Standardno,J42/KalPoFunti,J42/KalPoFunti/2.2),"") -> 10.6 | L42: =IFERROR(TežinaKojuTrebaIzgubitiPovećati-K42,"") -> 4.42 | M42: =IFERROR(IF(B41<>"",L42/(TežinaKojuTrebaIzgubitiPovećati),""),"") -> 29%
B43: 2022-09-19 | D43: 33 | E43: 145.4 | F43: =IFERROR(BMRPrilikomTrčanja,"") -> 1433 | G43: =IFERROR(IF(K42>0,F42*FaktorAktivnosti+IF(CiljnaTelesnaTežina="Održavanje",0,IF(CiljnaTelesnaTežina="SMANJI",-500,IF(CiljnaTelesnaTežina="Povećaj",500))),""),"") -> 1723 | H43: =IFERROR(F43*(FaktorAktivnosti),"") -> 2222 | I43: 499 | J43: 36531 | K43: =IFERROR(IF(Standardno,J43/KalPoFunti,J43/KalPoFunti/2.2),"") -> 10.4 | L43: =IFERROR(TežinaKojuTrebaIzgubitiPovećati-K43,"") -> 4.56 | M43: =IFERROR(IF(B42<>"",L43/(TežinaKojuTrebaIzgubitiPovećati),""),"") -> 30%
B44: 2022-09-20 | D44: 34 | E44: 145.3 | F44: =IFERROR(BMRPrilikomTrčanja,"") -> 1433 | G44: =IFERROR(IF(K43>0,F43*FaktorAktivnosti+IF(CiljnaTelesnaTežina="Održavanje",0,IF(CiljnaTelesnaTežina="SMANJI",-500,IF(CiljnaTelesnaTežina="Povećaj",500))),""),"") -> 1722 | H44: =IFERROR(F44*(FaktorAktivnosti),"") -> 2221 | I44: 499 | J44: 36032 | K44: =IFERROR(IF(Standardno,J44/KalPoFunti,J44/KalPoFunti/2.2),"") -> 10.3 | L44: =IFERROR(TežinaKojuTrebaIzgubitiPovećati-K44,"") -> 4.71 | M44: =IFERROR(IF(B43<>"",L44/(TežinaKojuTrebaIzgubitiPovećati),""),"") -> 31%
B45: 2022-09-21 | D45: 35 | E45: 145.2 | F45: =IFERROR(BMRPrilikomTrčanja,"") -> 1432 | G45: =IFERROR(IF(K44>0,F44*FaktorAktivnosti+IF(CiljnaTelesnaTežina="Održavanje",0,IF(CiljnaTelesnaTežina="SMANJI",-500,IF(CiljnaTelesnaTežina="Povećaj",500))),""),"") -> 1721 | H45: =IFERROR(F45*(FaktorAktivnosti),"") -> 2220 | I45: 499 | J45: 35533 | K45: =IFERROR(IF(Standardno,J45/KalPoFunti,J45/KalPoFunti/2.2),"") -> 10.2 | L45: =IFERROR(TežinaKojuTrebaIzgubitiPovećati-K45,"") -> 4.85 | M45: =IFERROR(IF(B44<>"",L45/(TežinaKojuTrebaIzgubitiPovećati),""),"") -> 32%
B46: 2022-09-22 | C46: 6 | D46: 36 | E46: 145.0 | F46: =IFERROR(BMRPrilikomTrčanja,"") -> 1431 | G46: =IFERROR(IF(K45>0,F45*FaktorAktivnosti+IF(CiljnaTelesnaTežina="Održavanje",0,IF(CiljnaTelesnaTežina="SMANJI",-500,IF(CiljnaTelesnaTežina="Povećaj",500))),""),"") -> 1720 | H46: =IFERROR(F46*(FaktorAktivnosti),"") -> 2219 | I46: 499 | J46: 35034 | K46: =IFERROR(IF(Standardno,J46/KalPoFunti,J46/KalPoFunti/2.2),"") -> 10.0 | L46: =IFERROR(TežinaKojuTrebaIzgubitiPovećati-K46,"") -> 4.99 | M46: =IFERROR(IF(B45<>"",L46/(TežinaKojuTrebaIzgubitiPovećati),""),"") -> 33%
B47: 2022-09-23 | D47: 37 | E47: 144.9 | F47: =IFERROR(BMRPrilikomTrčanja,"") -> 1431 | G47: =IFERROR(IF(K46>0,F46*FaktorAktivnosti+IF(CiljnaTelesnaTežina="Održavanje",0,IF(CiljnaTelesnaTežina="SMANJI",-500,IF(CiljnaTelesnaTežina="Povećaj",500))),""),"") -> 1719 | H47: =IFERROR(F47*(FaktorAktivnosti),"") -> 2218 | I47: 499 | J47: 34535 | K47: =IFERROR(IF(Standardno,J47/KalPoFunti,J47/KalPoFunti/2.2),"") -> 9.9 | L47: =IFERROR(TežinaKojuTrebaIzgubitiPovećati-K47,"") -> 5.13 | M47: =IFERROR(IF(B46<>"",L47/(TežinaKojuTrebaIzgubitiPovećati),""),"") -> 34%
B48: 2022-09-24 | D48: 38 | E48: 144.7 | F48: =IFERROR(BMRPrilikomTrčanja,"") -> 1430 | G48: =IFERROR(IF(K47>0,F47*FaktorAktivnosti+IF(CiljnaTelesnaTežina="Održavanje",0,IF(CiljnaTelesnaTežina="SMANJI",-500,IF(CiljnaTelesnaTežina="Povećaj",500))),""),"") -> 1718 | H48: =IFERROR(F48*(FaktorAktivnosti),"") -> 2217 | I48: 499 | J48: 34036 | K48: =IFERROR(IF(Standardno,J48/KalPoFunti,J48/KalPoFunti/2.2),"") -> 9.7 | L48: =IFERROR(TežinaKojuTrebaIzgubitiPovećati-K48,"") -> 5.28 | M48: =IFERROR(IF(B47<>"",L48/(TežinaKojuTrebaIzgubitiPovećati),""),"") -> 35%
B49: 2022-09-25 | D49: 39 | E49: 144.6 | F49: =IFERROR(BMRPrilikomTrčanja,"") -> 1430 | G49: =IFERROR(IF(K48>0,F48*FaktorAktivnosti+IF(CiljnaTelesnaTežina="Održavanje",0,IF(CiljnaTelesnaTežina="SMANJI",-500,IF(CiljnaTelesnaTežina="Povećaj",500))),""),"") -> 1717 | H49: =IFERROR(F49*(FaktorAktivnosti),"") -> 2216 | I49: 499 | J49: 33537 | K49: =IFERROR(IF(Standardno,J49/KalPoFunti,J49/KalPoFunti/2.2),"") -> 9.6 | L49: =IFERROR(TežinaKojuTrebaIzgubitiPovećati-K49,"") -> 5.42 | M49: =IFERROR(IF(B48<>"",L49/(TežinaKojuTrebaIzgubitiPovećati),""),"") -> 36%
B50: 2022-09-26 | D50: 40 | E50: 144.4 | F50: =IFERROR(BMRPrilikomTrčanja,"") -> 1429 | G50: =IFERROR(IF(K49>0,F49*FaktorAktivnosti+IF(CiljnaTelesnaTežina="Održavanje",0,IF(CiljnaTelesnaTežina="SMANJI",-500,IF(CiljnaTelesnaTežina="Povećaj",500))),""),"") -> 1716 | H50: =IFERROR(F50*(FaktorAktivnosti),"") -> 2215 | I50: 499 | J50: 33037 | K50: =IFERROR(IF(Standardno,J50/KalPoFunti,J50/KalPoFunti/2.2),"") -> 9.4 | L50: =IFERROR(TežinaKojuTrebaIzgubitiPovećati-K50,"") -> 5.56 | M50: =IFERROR(IF(B49<>"",L50/(TežinaKojuTrebaIzgubitiPovećati),""),"") -> 37%
B51: 2022-09-27 | D51: 41 | E51: 144.3 | F51: =IFERROR(BMRPrilikomTrčanja,"") -> 1428 | G51: =IFERROR(IF(K50>0,F50*FaktorAktivnosti+IF(CiljnaTelesnaTežina="Održavanje",0,IF(CiljnaTelesnaTežina="SMANJI",-500,IF(CiljnaTelesnaTežina="Povećaj",500))),""),"") -> 1715 | H51: =IFERROR(F51*(FaktorAktivnosti),"") -> 2214 | I51: 499 | J51: 32538 | K51: =IFERROR(IF(Standardno,J51/KalPoFunti,J51/KalPoFunti/2.2),"") -> 9.3 | L51: =IFERROR(TežinaKojuTrebaIzgubitiPovećati-K51,"") -> 5.70 | M51: =IFERROR(IF(B50<>"",L51/(TežinaKojuTrebaIzgubitiPovećati),""),"") -> 38%
B52: 2022-09-28 | D52: 42 | E52: 144.2 | F52: =IFERROR(BMRPrilikomTrčanja,"") -> 1428 | G52: =IFERROR(IF(K51>0,F51*FaktorAktivnosti+IF(CiljnaTelesnaTežina="Održavanje",0,IF(CiljnaTelesnaTežina="SMANJI",-500,IF(CiljnaTelesnaTežina="Povećaj",500))),""),"") -> 1714 | H52: =IFERROR(F52*(FaktorAktivnosti),"") -> 2213 | I52: 499 | J52: 32039 | K52: =IFERROR(IF(Standardno,J52/KalPoFunti,J52/KalPoFunti/2.2),"") -> 9.2 | L52: =IFERROR(TežinaKojuTrebaIzgubitiPovećati-K52,"") -> 5.85 | M52: =IFERROR(IF(B51<>"",L52/(TežinaKojuTrebaIzgubitiPovećati),""),"") -> 39%
B53: 2022-09-29 | C53: 7 | D53: 43 | E53: 144.0 | F53: =IFERROR(BMRPrilikomTrčanja,"") -> 1427 | G53: =IFERROR(IF(K52>0,F52*FaktorAktivnosti+IF(CiljnaTelesnaTežina="Održavanje",0,IF(CiljnaTelesnaTežina="SMANJI",-500,IF(CiljnaTelesnaTežina="Povećaj",500))),""),"") -> 1713 | H53: =IFERROR(F53*(FaktorAktivnosti),"") -> 2212 | I53: 499 | J53: 31540 | K53: =IFERROR(IF(Standardno,J53/KalPoFunti,J53/KalPoFunti/2.2),"") -> 9.0 | L53: =IFERROR(TežinaKojuTrebaIzgubitiPovećati-K53,"") -> 5.99 | M53: =IFERROR(IF(B52<>"",L53/(TežinaKojuTrebaIzgubitiPovećati),""),"") -> 40%
B54: 2022-09-30 | D54: 44 | E54: 143.9 | F54: =IFERROR(BMRPrilikomTrčanja,"") -> 1427 | G54: =IFERROR(IF(K53>0,F53*FaktorAktivnosti+IF(CiljnaTelesnaTežina="Održavanje",0,IF(CiljnaTelesnaTežina="SMANJI",-500,IF(CiljnaTelesnaTežina="Povećaj",500))),""),"") -> 1712 | H54: =IFERROR(F54*(FaktorAktivnosti),"") -> 2211 | I54: 499 | J54: 31041 | K54: =IFERROR(IF(Standardno,J54/KalPoFunti,J54/KalPoFunti/2.2),"") -> 8.9 | L54: =IFERROR(TežinaKojuTrebaIzgubitiPovećati-K54,"") -> 6.13 | M54: =IFERROR(IF(B53<>"",L54/(TežinaKojuTrebaIzgubitiPovećati),""),"") -> 41%
B55: 2022-10-01 | D55: 45 | E55: 143.7 | F55: =IFERROR(BMRPrilikomTrčanja,"") -> 1426 | G55: =IFERROR(IF(K54>0,F54*FaktorAktivnosti+IF(CiljnaTelesnaTežina="Održavanje",0,IF(CiljnaTelesnaTežina="SMANJI",-500,IF(CiljnaTelesnaTežina="Povećaj",500))),""),"") -> 1711 | H55: =IFERROR(F55*(FaktorAktivnosti),"") -> 2210 | I55: 499 | J55: 30542 | K55: =IFERROR(IF(Standardno,J55/KalPoFunti,J55/KalPoFunti/2.2),"") -> 8.7 | L55: =IFERROR(TežinaKojuTrebaIzgubitiPovećati-K55,"") -> 6.27 | M55: =IFERROR(IF(B54<>"",L55/(TežinaKojuTrebaIzgubitiPovećati),""),"") -> 42%
B56: 2022-10-02 | D56: 46 | E56: 143.6 | F56: =IFERROR(BMRPrilikomTrčanja,"") -> 1425 | G56: =IFERROR(IF(K55>0,F55*FaktorAktivnosti+IF(CiljnaTelesnaTežina="Održavanje",0,IF(CiljnaTelesnaTežina="SMANJI",-500,IF(CiljnaTelesnaTežina="Povećaj",500))),""),"") -> 1710 | H56: =IFERROR(F56*(FaktorAktivnosti),"") -> 2209 | I56: 499 | J56: 30043 | K56: =IFERROR(IF(Standardno,J56/KalPoFunti,J56/KalPoFunti/2.2),"") -> 8.6 | L56: =IFERROR(TežinaKojuTrebaIzgubitiPovećati-K56,"") -> 6.42 | M56: =IFERROR(IF(B55<>"",L56/(TežinaKojuTrebaIzgubitiPovećati),""),"") -> 43%
B57: 2022-10-03 | D57: 47 | E57: 143.4 | F57: =IFERROR(BMRPrilikomTrčanja,"") -> 1425 | G57: =IFERROR(IF(K56>0,F56*FaktorAktivnosti+IF(CiljnaTelesnaTežina="Održavanje",0,IF(CiljnaTelesnaTežina="SMANJI",-500,IF(CiljnaTelesnaTežina="Povećaj",500))),""),"") -> 1709 | H57: =IFERROR(F57*(FaktorAktivnosti),"") -> 2208 | I57: 499 | J57: 29544 | K57: =IFERROR(IF(Standardno,J57/KalPoFunti,J57/KalPoFunti/2.2),"") -> 8.4 | L57: =IFERROR(TežinaKojuTrebaIzgubitiPovećati-K57,"") -> 6.56 | M57: =IFERROR(IF(B56<>"",L57/(TežinaKojuTrebaIzgubitiPovećati),""),"") -> 44%
B58: 2022-10-04 | D58: 48 | E58: 143.3 | F58: =IFERROR(BMRPrilikomTrčanja,"") -> 1424 | G58: =IFERROR(IF(K57>0,F57*FaktorAktivnosti+IF(CiljnaTelesnaTežina="Održavanje",0,IF(CiljnaTelesnaTežina="SMANJI",-500,IF(CiljnaTelesnaTežina="Povećaj",500))),""),"") -> 1708 | H58: =IFERROR(F58*(FaktorAktivnosti),"") -> 2207 | I58: 499 | J58: 29045 | K58: =IFERROR(IF(Standardno,J58/KalPoFunti,J58/KalPoFunti/2.2),"") -> 8.3 | L58: =IFERROR(TežinaKojuTrebaIzgubitiPovećati-K58,"") -> 6.70 | M58: =IFERROR(IF(B57<>"",L58/(TežinaKojuTrebaIzgubitiPovećati),""),"") -> 45%
B59: 2022-10-05 | D59: 49 | E59: 143.2 | F59: =IFERROR(BMRPrilikomTrčanja,"") -> 1423 | G59: =IFERROR(IF(K58>0,F58*FaktorAktivnosti+IF(CiljnaTelesnaTežina="Održavanje",0,IF(CiljnaTelesnaTežina="SMANJI",-500,IF(CiljnaTelesnaTežina="Povećaj",500))),""),"") -> 1707 | H59: =IFERROR(F59*(FaktorAktivnosti),"") -> 2206 | I59: 499 | J59: 28546 | K59: =IFERROR(IF(Standardno,J59/KalPoFunti,J59/KalPoFunti/2.2),"") -> 8.2 | L59: =IFERROR(TežinaKojuTrebaIzgubitiPovećati-K59,"") -> 6.84 | M59: =IFERROR(IF(B58<>"",L59/(TežinaKojuTrebaIzgubitiPovećati),""),"") -> 46%
B60: 2022-10-06 | C60: 8 | D60: 50 | E60: 143.0 | F60: =IFERROR(BMRPrilikomTrčanja,"") -> 1423 | G60: =IFERROR(IF(K59>0,F59*FaktorAktivnosti+IF(CiljnaTelesnaTežina="Održavanje",0,IF(CiljnaTelesnaTežina="SMANJI",-500,IF(CiljnaTelesnaTežina="Povećaj",500))),""),"") -> 1706 | H60: =IFERROR(F60*(FaktorAktivnosti),"") -> 2205 | I60: 499 | J60: 28047 | K60: =IFERROR(IF(Standardno,J60/KalPoFunti,J60/KalPoFunti/2.2),"") -> 8.0 | L60: =IFERROR(TežinaKojuTrebaIzgubitiPovećati-K60,"") -> 6.99 | M60: =IFERROR(IF(B59<>"",L60/(TežinaKojuTrebaIzgubitiPovećati),""),"") -> 47%
B61: 2022-10-07 | D61: 51 | E61: 142.9 | F61: =IFERROR(BMRPrilikomTrčanja,"") -> 1422 | G61: =IFERROR(IF(K60>0,F60*FaktorAktivnosti+IF(CiljnaTelesnaTežina="Održavanje",0,IF(CiljnaTelesnaTežina="SMANJI",-500,IF(CiljnaTelesnaTežina="Povećaj",500))),""),"") -> 1705 | H61: =IFERROR(F61*(FaktorAktivnosti),"") -> 2204 | I61: 499 | J61: 27548 | K61: =IFERROR(IF(Standardno,J61/KalPoFunti,J61/KalPoFunti/2.2),"") -> 7.9 | L61: =IFERROR(TežinaKojuTrebaIzgubitiPovećati-K61,"") -> 7.13 | M61: =IFERROR(IF(B60<>"",L61/(TežinaKojuTrebaIzgubitiPovećati),""),"") -> 48%
B62: 2022-10-08 | D62: 52 | E62: 142.7 | F62: =IFERROR(BMRPrilikomTrčanja,"") -> 1422 | G62: =IFERROR(IF(K61>0,F61*FaktorAktivnosti+IF(CiljnaTelesnaTežina="Održavanje",0,IF(CiljnaTelesnaTežina="SMANJI",-500,IF(CiljnaTelesnaTežina="Povećaj",500))),""),"") -> 1704 | H62: =IFERROR(F62*(FaktorAktivnosti),"") -> 2203 | I62: 499 | J62: 27049 | K62: =IFERROR(IF(Standardno,J62/KalPoFunti,J62/KalPoFunti/2.2),"") -> 7.7 | L62: =IFERROR(TežinaKojuTrebaIzgubitiPovećati-K62,"") -> 7.27 | M62: =IFERROR(IF(B61<>"",L62/(TežinaKojuTrebaIzgubitiPovećati),""),"") -> 48%
B63: 2022-10-09 | D63: 53 | E63: 142.6 | F63: =IFERROR(BMRPrilikomTrčanja,"") -> 1421 | G63: =IFERROR(IF(K62>0,F62*FaktorAktivnosti+IF(CiljnaTelesnaTežina="Održavanje",0,IF(CiljnaTelesnaTežina="SMANJI",-500,IF(CiljnaTelesnaTežina="Povećaj",500))),""),"") -> 1703 | H63: =IFERROR(F63*(FaktorAktivnosti),"") -> 2202 | I63: 499 | J63: 26550 | K63: =IFERROR(IF(Standardno,J63/KalPoFunti,J63/KalPoFunti/2.2),"") -> 7.6 | L63: =IFERROR(TežinaKojuTrebaIzgubitiPovećati-K63,"") -> 7.41 | M63: =IFERROR(IF(B62<>"",L63/(TežinaKojuTrebaIzgubitiPovećati),""),"") -> 49%
B64: 2022-10-10 | D64: 54 | E64: 142.4 | F64: =IFERROR(BMRPrilikomTrčanja,"") -> 1420 | G64: =IFERROR(IF(K63>0,F63*FaktorAktivnosti+IF(CiljnaTelesnaTežina="Održavanje",0,IF(CiljnaTelesnaTežina="SMANJI",-500,IF(CiljnaTelesnaTežina="Povećaj",500))),""),"") -> 1702 | H64: =IFERROR(F64*(FaktorAktivnosti),"") -> 2202 | I64: 499 | J64: 26051 | K64: =IFERROR(IF(Standardno,J64/KalPoFunti,J64/KalPoFunti/2.2),"") -> 7.4 | L64: =IFERROR(TežinaKojuTrebaIzgubitiPovećati-K64,"") -> 7.56 | M64: =IFERROR(IF(B63<>"",L64/(TežinaKojuTrebaIzgubitiPovećati),""),"") -> 50%
B65: 2022-10-11 | D65: 55 | E65: 142.3 | F65: =IFERROR(BMRPrilikomTrčanja,"") -> 1420 | G65: =IFERROR(IF(K64>0,F64*FaktorAktivnosti+IF(CiljnaTelesnaTežina="Održavanje",0,IF(CiljnaTelesnaTežina="SMANJI",-500,IF(CiljnaTelesnaTežina="Povećaj",500))),""),"") -> 1702 | H65: =IFERROR(F65*(FaktorAktivnosti),"") -> 2201 | I65: 499 | J65: 25552 | K65: =IFERROR(IF(Standardno,J65/KalPoFunti,J65/KalPoFunti/2.2),"") -> 7.3 | L65: =IFERROR(TežinaKojuTrebaIzgubitiPovećati-K65,"") -> 7.70 | M65: =IFERROR(IF(B64<>"",L65/(TežinaKojuTrebaIzgubitiPovećati),""),"") -> 51%
B66: 2022-10-12 | D66: 56 | E66: 142.2 | F66: =IFERROR(BMRPrilikomTrčanja,"") -> 1419 | G66: =IFERROR(IF(K65>0,F65*FaktorAktivnosti+IF(CiljnaTelesnaTežina="Održavanje",0,IF(CiljnaTelesnaTežina="SMANJI",-500,IF(CiljnaTelesnaTežina="Povećaj",500))),""),"") -> 1701 | H66: =IFERROR(F66*(FaktorAktivnosti),"") -> 2200 | I66: 499 | J66: 25053 | K66: =IFERROR(IF(Standardno,J66/KalPoFunti,J66/KalPoFunti/2.2),"") -> 7.2 | L66: =IFERROR(TežinaKojuTrebaIzgubitiPovećati-K66,"") -> 7.84 | M66: =IFERROR(IF(B65<>"",L66/(TežinaKojuTrebaIzgubitiPovećati),""),"") -> 52%
B67: 2022-10-13 | C67: 9 | D67: 57 | E67: 142.0 | F67: =IFERROR(BMRPrilikomTrčanja,"") -> 1418 | G67: =IFERROR(IF(K66>0,F66*FaktorAktivnosti+IF(CiljnaTelesnaTežina="Održavanje",0,IF(CiljnaTelesnaTežina="SMANJI",-500,IF(CiljnaTelesnaTežina="Povećaj",500))),""),"") -> 1700 | H67: =IFERROR(F67*(FaktorAktivnosti),"") -> 2199 | I67: 499 | J67: 24554 | K67: =IFERROR(IF(Standardno,J67/KalPoFunti,J67/KalPoFunti/2.2),"") -> 7.0 | L67: =IFERROR(TežinaKojuTrebaIzgubitiPovećati-K67,"") -> 7.98 | M67: =IFERROR(IF(B66<>"",L67/(TežinaKojuTrebaIzgubitiPovećati),""),"") -> 53%
B68: 2022-10-14 | D68: 58 | E68: 141.9 | F68: =IFERROR(BMRPrilikomTrčanja,"") -> 1418 | G68: =IFERROR(IF(K67>0,F67*FaktorAktivnosti+IF(CiljnaTelesnaTežina="Održavanje",0,IF(CiljnaTelesnaTežina="SMANJI",-500,IF(CiljnaTelesnaTežina="Povećaj",500))),""),"") -> 1699 | H68: =IFERROR(F68*(FaktorAktivnosti),"") -> 2198 | I68: 499 | J68: 24055 | K68: =IFERROR(IF(Standardno,J68/KalPoFunti,J68/KalPoFunti/2.2),"") -> 6.9 | L68: =IFERROR(TežinaKojuTrebaIzgubitiPovećati-K68,"") -> 8.13 | M68: =IFERROR(IF(B67<>"",L68/(TežinaKojuTrebaIzgubitiPovećati),""),"") -> 54%
B69: 2022-10-15 | D69: 59 | E69: 141.7 | F69: =IFERROR(BMRPrilikomTrčanja,"") -> 1417 | G69: =IFERROR(IF(K68>0,F68*FaktorAktivnosti+IF(CiljnaTelesnaTežina="Održavanje",0,IF(CiljnaTelesnaTežina="SMANJI",-500,IF(CiljnaTelesnaTežina="Povećaj",500))),""),"") -> 1698 | H69: =IFERROR(F69*(FaktorAktivnosti),"") -> 2197 | I69: 499 | J69: 23556 | K69: =IFERROR(IF(Standardno,J69/KalPoFunti,J69/KalPoFunti/2.2),"") -> 6.7 | L69: =IFERROR(TežinaKojuTrebaIzgubitiPovećati-K69,"") -> 8.27 | M69: =IFERROR(IF(B68<>"",L69/(TežinaKojuTrebaIzgubitiPovećati),""),"") -> 55%
B70: 2022-10-16 | D70: 60 | E70: 141.6 | F70: =IFERROR(BMRPrilikomTrčanja,"") -> 1417 | G70: =IFERROR(IF(K69>0,F69*FaktorAktivnosti+IF(CiljnaTelesnaTežina="Održavanje",0,IF(CiljnaTelesnaTežina="SMANJI",-500,IF(CiljnaTelesnaTežina="Povećaj",500))),""),"") -> 1697 | H70: =IFERROR(F70*(FaktorAktivnosti),"") -> 2196 | I70: 499 | J70: 23057 | K70: =IFERROR(IF(Standardno,J70/KalPoFunti,J70/KalPoFunti/2.2),"") -> 6.6 | L70: =IFERROR(TežinaKojuTrebaIzgubitiPovećati-K70,"") -> 8.41 | M70: =IFERROR(IF(B69<>"",L70/(TežinaKojuTrebaIzgubitiPovećati),""),"") -> 56%
B71: 2022-10-17 | D71: 61 | E71: 141.4 | F71: =IFERROR(BMRPrilikomTrčanja,"") -> 1416 | G71: =IFERROR(IF(K70>0,F70*FaktorAktivnosti+IF(CiljnaTelesnaTežina="Održavanje",0,IF(CiljnaTelesnaTežina="SMANJI",-500,IF(CiljnaTelesnaTežina="Povećaj",500))),""),"") -> 1696 | H71: =IFERROR(F71*(FaktorAktivnosti),"") -> 2195 | I71: 499 | J71: 22558 | K71: =IFERROR(IF(Standardno,J71/KalPoFunti,J71/KalPoFunti/2.2),"") -> 6.4 | L71: =IFERROR(TežinaKojuTrebaIzgubitiPovećati-K71,"") -> 8.55 | M71: =IFERROR(IF(B70<>"",L71/(TežinaKojuTrebaIzgubitiPovećati),""),"") -> 57%
B72: 2022-10-18 | D72: 62 | E72: 141.3 | F72: =IFERROR(BMRPrilikomTrčanja,"") -> 1415 | G72: =IFERROR(IF(K71>0,F71*FaktorAktivnosti+IF(CiljnaTelesnaTežina="Održavanje",0,IF(CiljnaTelesnaTežina="SMANJI",-500,IF(CiljnaTelesnaTežina="Povećaj",500))),""),"") -> 1695 | H72: =IFERROR(F72*(FaktorAktivnosti),"") -> 2194 | I72: 499 | J72: 22059 | K72: =IFERROR(IF(Standardno,J72/KalPoFunti,J72/KalPoFunti/2.2),"") -> 6.3 | L72: =IFERROR(TežinaKojuTrebaIzgubitiPovećati-K72,"") -> 8.70 | M72: =IFERROR(IF(B71<>"",L72/(TežinaKojuTrebaIzgubitiPovećati),""),"") -> 58%
B73: 2022-10-19 | D73: 63 | E73: 141.2 | F73: =IFERROR(BMRPrilikomTrčanja,"") -> 1415 | G73: =IFERROR(IF(K72>0,F72*FaktorAktivnosti+IF(CiljnaTelesnaTežina="Održavanje",0,IF(CiljnaTelesnaTežina="SMANJI",-500,IF(CiljnaTelesnaTežina="Povećaj",500))),""),"") -> 1694 | H73: =IFERROR(F73*(FaktorAktivnosti),"") -> 2193 | I73: 499 | J73: 21560 | K73: =IFERROR(IF(Standardno,J73/KalPoFunti,J73/KalPoFunti/2.2),"") -> 6.2 | L73: =IFERROR(TežinaKojuTrebaIzgubitiPovećati-K73,"") -> 8.84 | M73: =IFERROR(IF(B72<>"",L73/(TežinaKojuTrebaIzgubitiPovećati),""),"") -> 59%
B74: 2022-10-20 | C74: 10 | D74: 64 | E74: 141.0 | F74: =IFERROR(BMRPrilikomTrčanja,"") -> 1414 | G74: =IFERROR(IF(K73>0,F73*FaktorAktivnosti+IF(CiljnaTelesnaTežina="Održavanje",0,IF(CiljnaTelesnaTežina="SMANJI",-500,IF(CiljnaTelesnaTežina="Povećaj",500))),""),"") -> 1693 | H74: =IFERROR(F74*(FaktorAktivnosti),"") -> 2192 | I74: 499 | J74: 21061 | K74: =IFERROR(IF(Standardno,J74/KalPoFunti,J74/KalPoFunti/2.2),"") -> 6.0 | L74: =IFERROR(TežinaKojuTrebaIzgubitiPovećati-K74,"") -> 8.98 | M74: =IFERROR(IF(B73<>"",L74/(TežinaKojuTrebaIzgubitiPovećati),""),"") -> 60%
B75: 2022-10-21 | D75: 65 | E75: 140.9 | F75: =IFERROR(BMRPrilikomTrčanja,"") -> 1414 | G75: =IFERROR(IF(K74>0,F74*FaktorAktivnosti+IF(CiljnaTelesnaTežina="Održavanje",0,IF(CiljnaTelesnaTežina="SMANJI",-500,IF(CiljnaTelesnaTežina="Povećaj",500))),""),"") -> 1692 | H75: =IFERROR(F75*(FaktorAktivnosti),"") -> 2191 | I75: =IFERROR(IF(CiljnaTelesnaTežina="Povećaj",G75-H75,H75-G75),"") -> 499 | J75: 20562 | K75: =IFERROR(IF(Standardno,J75/KalPoFunti,J75/KalPoFunti/2.2),"") -> 5.9 | L75: =IFERROR(TežinaKojuTrebaIzgubitiPovećati-K75,"") -> 9.13 | M75: =IFERROR(IF(B74<>"",L75/(TežinaKojuTrebaIzgubitiPovećati),""),"") -> 61%
B76: =IFERROR(IF(K75>0,B75+1,""),"") -> 2022-10-22 | D76: =IFERROR(IF(K75>0,D75+1,""),"") -> 66 | E76: =IFERROR(IF($D76<>"",E75-(I75/KalPoFunti),""),"") -> 140.7 | F76: =IFERROR(BMRPrilikomTrčanja,"") -> 1413 | G76: =IFERROR(IF(K75>0,F75*FaktorAktivnosti+IF(CiljnaTelesnaTežina="Održavanje",0,IF(CiljnaTelesnaTežina="SMANJI",-500,IF(CiljnaTelesnaTežina="Povećaj",500))),""),"") -> 1691 | H76: =IFERROR(F76*(FaktorAktivnosti),"") -> 2190 | I76: 499 | J76: 20062 | K76: =IFERROR(IF(Standardno,J76/KalPoFunti,J76/KalPoFunti/2.2),"") -> 5.7 | L76: =IFERROR(TežinaKojuTrebaIzgubitiPovećati-K76,"") -> 9.27 | M76: =IFERROR(IF(B75<>"",L76/(TežinaKojuTrebaIzgubitiPovećati),""),"") -> 62%
B77: 2022-10-23 | C77: =IFERROR(IF(D77<>"",IF(MOD(D77,7)=1,(D76/7)+1,""),""),"") ->  | D77: 67 | E77: 140.6 | F77: =IFERROR(BMRPrilikomTrčanja,"") -> 1412 | G77: =IFERROR(IF(K76>0,F76*FaktorAktivnosti+IF(CiljnaTelesnaTežina="Održavanje",0,IF(CiljnaTelesnaTežina="SMANJI",-500,IF(CiljnaTelesnaTežina="Povećaj",500))),""),"") -> 1690 | H77: =IFERROR(F77*(FaktorAktivnosti),"") -> 2189 | I77: 499 | J77: =IFERROR(J76-I77,"") -> 19563 | K77: =IFERROR(IF(Standardno,J77/KalPoFunti,J77/KalPoFunti/2.2),"") -> 5.6 | L77: =IFERROR(TežinaKojuTrebaIzgubitiPovećati-K77,"") -> 9.41 | M77: =IFERROR(IF(B76<>"",L77/(TežinaKojuTrebaIzgubitiPovećati),""),"") -> 63%
B78: 2022-10-24 | D78: 68 | E78: 140.4 | F78: =IFERROR(BMRPrilikomTrčanja,"") -> 1412 | G78: =IFERROR(IF(K77>0,F77*FaktorAktivnosti+IF(CiljnaTelesnaTežina="Održavanje",0,IF(CiljnaTelesnaTežina="SMANJI",-500,IF(CiljnaTelesnaTežina="Povećaj",500))),""),"") -> 1689 | H78: =IFERROR(F78*(FaktorAktivnosti),"") -> 2188 | I78: 499 | J78: 19064 | K78: =IFERROR(IF(Standardno,J78/KalPoFunti,J78/KalPoFunti/2.2),"") -> 5.4 | L78: =IFERROR(TežinaKojuTrebaIzgubitiPovećati-K78,"") -> 9.55 | M78: =IFERROR(IF(B77<>"",L78/(TežinaKojuTrebaIzgubitiPovećati),""),"") -> 64%
B79: 2022-10-25 | D79: 69 | E79: 140.3 | F79: =IFERROR(BMRPrilikomTrčanja,"") -> 1411 | G79: =IFERROR(IF(K78>0,F78*FaktorAktivnosti+IF(CiljnaTelesnaTežina="Održavanje",0,IF(CiljnaTelesnaTežina="SMANJI",-500,IF(CiljnaTelesnaTežina="Povećaj",500))),""),"") -> 1688 | H79: =IFERROR(F79*(FaktorAktivnosti),"") -> 2187 | I79: 499 | J79: 18565 | K79: =IFERROR(IF(Standardno,J79/KalPoFunti,J79/KalPoFunti/2.2),"") -> 5.3 | L79: =IFERROR(TežinaKojuTrebaIzgubitiPovećati-K79,"") -> 9.70 | M79: =IFERROR(IF(B78<>"",L79/(TežinaKojuTrebaIzgubitiPovećati),""),"") -> 65%
B80: 2022-10-26 | D80: 70 | E80: 140.2 | F80: =IFERROR(BMRPrilikomTrčanja,"") -> 1410 | G80: =IFERROR(IF(K79>0,F79*FaktorAktivnosti+IF(CiljnaTelesnaTežina="Održavanje",0,IF(CiljnaTelesnaTežina="SMANJI",-500,IF(CiljnaTelesnaTežina="Povećaj",500))),""),"") -> 1687 | H80: =IFERROR(F80*(FaktorAktivnosti),"") -> 2186 | I80: 499 | J80: 18066 | K80: =IFERROR(IF(Standardno,J80/KalPoFunti,J80/KalPoFunti/2.2),"") -> 5.2 | L80: =IFERROR(TežinaKojuTrebaIzgubitiPovećati-K80,"") -> 9.84 | M80: =IFERROR(IF(B79<>"",L80/(TežinaKojuTrebaIzgubitiPovećati),""),"") -> 66%
B81: 2022-10-27 | C81: 11 | D81: 71 | E81: 140.0 | F81: =IFERROR(BMRPrilikomTrčanja,"") -> 1410 | G81: =IFERROR(IF(K80>0,F80*FaktorAktivnosti+IF(CiljnaTelesnaTežina="Održavanje",0,IF(CiljnaTelesnaTežina="SMANJI",-500,IF(CiljnaTelesnaTežina="Povećaj",500))),""),"") -> 1686 | H81: =IFERROR(F81*(FaktorAktivnosti),"") -> 2185 | I81: 499 | J81: 17567 | K81: =IFERROR(IF(Standardno,J81/KalPoFunti,J81/KalPoFunti/2.2),"") -> 5.0 | L81: =IFERROR(TežinaKojuTrebaIzgubitiPovećati-K81,"") -> 9.98 | M81: =IFERROR(IF(B80<>"",L81/(TežinaKojuTrebaIzgubitiPovećati),""),"") -> 67%
B82: 2022-10-28 | D82: 72 | E82: 139.9 | F82: =IFERROR(BMRPrilikomTrčanja,"") -> 1409 | G82: =IFERROR(IF(K81>0,F81*FaktorAktivnosti+IF(CiljnaTelesnaTežina="Održavanje",0,IF(CiljnaTelesnaTežina="SMANJI",-500,IF(CiljnaTelesnaTežina="Povećaj",500))),""),"") -> 1685 | H82: =IFERROR(F82*(FaktorAktivnosti),"") -> 2184 | I82: 499 | J82: 17068 | K82: =IFERROR(IF(Standardno,J82/KalPoFunti,J82/KalPoFunti/2.2),"") -> 4.9 | L82: =IFERROR(TežinaKojuTrebaIzgubitiPovećati-K82,"") -> 10.12 | M82: =IFERROR(IF(B81<>"",L82/(TežinaKojuTrebaIzgubitiPovećati),""),"") -> 67%
B83: 2022-10-29 | D83: 73 | E83: 139.7 | F83: =IFERROR(BMRPrilikomTrčanja,"") -> 1409 | G83: =IFERROR(IF(K82>0,F82*FaktorAktivnosti+IF(CiljnaTelesnaTežina="Održavanje",0,IF(CiljnaTelesnaTežina="SMANJI",-500,IF(CiljnaTelesnaTežina="Povećaj",500))),""),"") -> 1684 | H83: =IFERROR(F83*(FaktorAktivnosti),"") -> 2183 | I83: 499 | J83: 16569 | K83: =IFERROR(IF(Standardno,J83/KalPoFunti,J83/KalPoFunti/2.2),"") -> 4.7 | L83: =IFERROR(TežinaKojuTrebaIzgubitiPovećati-K83,"") -> 10.27 | M83: =IFERROR(IF(B82<>"",L83/(TežinaKojuTrebaIzgubitiPovećati),""),"") -> 68%
B84: 2022-10-30 | D84: 74 | E84: 139.6 | F84: =IFERROR(BMRPrilikomTrčanja,"") -> 1408 | G84: =IFERROR(IF(K83>0,F83*FaktorAktivnosti+IF(CiljnaTelesnaTežina="Održavanje",0,IF(CiljnaTelesnaTežina="SMANJI",-500,IF(CiljnaTelesnaTežina="Povećaj",500))),""),"") -> 1683 | H84: =IFERROR(F84*(FaktorAktivnosti),"") -> 2182 | I84: 499 | J84: 16070 | K84: =IFERROR(IF(Standardno,J84/KalPoFunti,J84/KalPoFunti/2.2),"") -> 4.6 | L84: =IFERROR(TežinaKojuTrebaIzgubitiPovećati-K84,"") -> 10.41 | M84: =IFERROR(IF(B83<>"",L84/(TežinaKojuTrebaIzgubitiPovećati),""),"") -> 69%
B85: 2022-10-31 | D85: 75 | E85: 139.4 | F85: =IFERROR(BMRPrilikomTrčanja,"") -> 1407 | G85: =IFERROR(IF(K84>0,F84*FaktorAktivnosti+IF(CiljnaTelesnaTežina="Održavanje",0,IF(CiljnaTelesnaTežina="SMANJI",-500,IF(CiljnaTelesnaTežina="Povećaj",500))),""),"") -> 1682 | H85: =IFERROR(F85*(FaktorAktivnosti),"") -> 2181 | I85: 499 | J85: 15571 | K85: =IFERROR(IF(Standardno,J85/KalPoFunti,J85/KalPoFunti/2.2),"") -> 4.4 | L85: =IFERROR(TežinaKojuTrebaIzgubitiPovećati-K85,"") -> 10.55 | M85: =IFERROR(IF(B84<>"",L85/(TežinaKojuTrebaIzgubitiPovećati),""),"") -> 70%
B86: 2022-11-01 | D86: 76 | E86: 139.3 | F86: =IFERROR(BMRPrilikomTrčanja,"") -> 1407 | G86: =IFERROR(IF(K85>0,F85*FaktorAktivnosti+IF(CiljnaTelesnaTežina="Održavanje",0,IF(CiljnaTelesnaTežina="SMANJI",-500,IF(CiljnaTelesnaTežina="Povećaj",500))),""),"") -> 1681 | H86: =IFERROR(F86*(FaktorAktivnosti),"") -> 2180 | I86: 499 | J86: 15072 | K86: =IFERROR(IF(Standardno,J86/KalPoFunti,J86/KalPoFunti/2.2),"") -> 4.3 | L86: =IFERROR(TežinaKojuTrebaIzgubitiPovećati-K86,"") -> 10.69 | M86: =IFERROR(IF(B85<>"",L86/(TežinaKojuTrebaIzgubitiPovećati),""),"") -> 71%
B87: 2022-11-02 | D87: 77 | E87: 139.2 | F87: =IFERROR(BMRPrilikomTrčanja,"") -> 1406 | G87: =IFERROR(IF(K86>0,F86*FaktorAktivnosti+IF(CiljnaTelesnaTežina="Održavanje",0,IF(CiljnaTelesnaTežina="SMANJI",-500,IF(CiljnaTelesnaTežina="Povećaj",500))),""),"") -> 1680 | H87: =IFERROR(F87*(FaktorAktivnosti),"") -> 2179 | I87: 499 | J87: 14573 | K87: =IFERROR(IF(Standardno,J87/KalPoFunti,J87/KalPoFunti/2.2),"") -> 4.2 | L87: =IFERROR(TežinaKojuTrebaIzgubitiPovećati-K87,"") -> 10.84 | M87: =IFERROR(IF(B86<>"",L87/(TežinaKojuTrebaIzgubitiPovećati),""),"") -> 72%
B88: 2022-11-03 | C88: 12 | D88: 78 | E88: 139.0 | F88: =IFERROR(BMRPrilikomTrčanja,"") -> 1405 | G88: =IFERROR(IF(K87>0,F87*FaktorAktivnosti+IF(CiljnaTelesnaTežina="Održavanje",0,IF(CiljnaTelesnaTežina="SMANJI",-500,IF(CiljnaTelesnaTežina="Povećaj",500))),""),"") -> 1679 | H88: =IFERROR(F88*(FaktorAktivnosti),"") -> 2178 | I88: 499 | J88: 14074 | K88: =IFERROR(IF(Standardno,J88/KalPoFunti,J88/KalPoFunti/2.2),"") -> 4.0 | L88: =IFERROR(TežinaKojuTrebaIzgubitiPovećati-K88,"") -> 10.98 | M88: =IFERROR(IF(B87<>"",L88/(TežinaKojuTrebaIzgubitiPovećati),""),"") -> 73%
B89: 2022-11-04 | D89: 79 | E89: 138.9 | F89: =IFERROR(BMRPrilikomTrčanja,"") -> 1405 | G89: =IFERROR(IF(K88>0,F88*FaktorAktivnosti+IF(CiljnaTelesnaTežina="Održavanje",0,IF(CiljnaTelesnaTežina="SMANJI",-500,IF(CiljnaTelesnaTežina="Povećaj",500))),""),"") -> 1678 | H89: =IFERROR(F89*(FaktorAktivnosti),"") -> 2177 | I89: 499 | J89: 13575 | K89: =IFERROR(IF(Standardno,J89/KalPoFunti,J89/KalPoFunti/2.2),"") -> 3.9 | L89: =IFERROR(TežinaKojuTrebaIzgubitiPovećati-K89,"") -> 11.12 | M89: =IFERROR(IF(B88<>"",L89/(TežinaKojuTrebaIzgubitiPovećati),""),"") -> 74%
B90: 2022-11-05 | D90: 80 | E90: 138.7 | F90: =IFERROR(BMRPrilikomTrčanja,"") -> 1404 | G90: =IFERROR(IF(K89>0,F89*FaktorAktivnosti+IF(CiljnaTelesnaTežina="Održavanje",0,IF(CiljnaTelesnaTežina="SMANJI",-500,IF(CiljnaTelesnaTežina="Povećaj",500))),""),"") -> 1677 | H90: =IFERROR(F90*(FaktorAktivnosti),"") -> 2177 | I90: 499 | J90: 13076 | K90: =IFERROR(IF(Standardno,J90/KalPoFunti,J90/KalPoFunti/2.2),"") -> 3.7 | L90: =IFERROR(TežinaKojuTrebaIzgubitiPovećati-K90,"") -> 11.26 | M90: =IFERROR(IF(B89<>"",L90/(TežinaKojuTrebaIzgubitiPovećati),""),"") -> 75%
B91: 2022-11-06 | D91: 81 | E91: 138.6 | F91: =IFERROR(BMRPrilikomTrčanja,"") -> 1404 | G91: =IFERROR(IF(K90>0,F90*FaktorAktivnosti+IF(CiljnaTelesnaTežina="Održavanje",0,IF(CiljnaTelesnaTežina="SMANJI",-500,IF(CiljnaTelesnaTežina="Povećaj",500))),""),"") -> 1677 | H91: =IFERROR(F91*(FaktorAktivnosti),"") -> 2176 | I91: 499 | J91: 12577 | K91: =IFERROR(IF(Standardno,J91/KalPoFunti,J91/KalPoFunti/2.2),"") -> 3.6 | L91: =IFERROR(TežinaKojuTrebaIzgubitiPovećati-K91,"") -> 11.41 | M91: =IFERROR(IF(B90<>"",L91/(TežinaKojuTrebaIzgubitiPovećati),""),"") -> 76%
B92: 2022-11-07 | D92: 82 | E92: 138.5 | F92: =IFERROR(BMRPrilikomTrčanja,"") -> 1403 | G92: =IFERROR(IF(K91>0,F91*FaktorAktivnosti+IF(CiljnaTelesnaTežina="Održavanje",0,IF(CiljnaTelesnaTežina="SMANJI",-500,IF(CiljnaTelesnaTežina="Povećaj",500))),""),"") -> 1676 | H92: =IFERROR(F92*(FaktorAktivnosti),"") -> 2175 | I92: 499 | J92: 12078 | K92: =IFERROR(IF(Standardno,J92/KalPoFunti,J92/KalPoFunti/2.2),"") -> 3.5 | L92: =IFERROR(TežinaKojuTrebaIzgubitiPovećati-K92,"") -> 11.55 | M92: =IFERROR(IF(B91<>"",L92/(TežinaKojuTrebaIzgubitiPovećati),""),"") -> 77%
B93: 2022-11-08 | D93: 83 | E93: 138.3 | F93: =IFERROR(BMRPrilikomTrčanja,"") -> 1402 | G93: =IFERROR(IF(K92>0,F92*FaktorAktivnosti+IF(CiljnaTelesnaTežina="Održavanje",0,IF(CiljnaTelesnaTežina="SMANJI",-500,IF(CiljnaTelesnaTežina="Povećaj",500))),""),"") -> 1675 | H93: =IFERROR(F93*(FaktorAktivnosti),"") -> 2174 | I93: 499 | J93: 11579 | K93: =IFERROR(IF(Standardno,J93/KalPoFunti,J93/KalPoFunti/2.2),"") -> 3.3 | L93: =IFERROR(TežinaKojuTrebaIzgubitiPovećati-K93,"") -> 11.69 | M93: =IFERROR(IF(B92<>"",L93/(TežinaKojuTrebaIzgubitiPovećati),""),"") -> 78%
B94: 2022-11-09 | D94: 84 | E94: 138.2 | F94: =IFERROR(BMRPrilikomTrčanja,"") -> 1402 | G94: =IFERROR(IF(K93>0,F93*FaktorAktivnosti+IF(CiljnaTelesnaTežina="Održavanje",0,IF(CiljnaTelesnaTežina="SMANJI",-500,IF(CiljnaTelesnaTežina="Povećaj",500))),""),"") -> 1674 | H94: =IFERROR(F94*(FaktorAktivnosti),"") -> 2173 | I94: 499 | J94: 11080 | K94: =IFERROR(IF(Standardno,J94/KalPoFunti,J94/KalPoFunti/2.2),"") -> 3.2 | L94: =IFERROR(TežinaKojuTrebaIzgubitiPovećati-K94,"") -> 11.83 | M94: =IFERROR(IF(B93<>"",L94/(TežinaKojuTrebaIzgubitiPovećati),""),"") -> 79%
B95: 2022-11-10 | C95: 13 | D95: 85 | E95: 138.0 | F95: =IFERROR(BMRPrilikomTrčanja,"") -> 1401 | G95: =IFERROR(IF(K94>0,F94*FaktorAktivnosti+IF(CiljnaTelesnaTežina="Održavanje",0,IF(CiljnaTelesnaTežina="SMANJI",-500,IF(CiljnaTelesnaTežina="Povećaj",500))),""),"") -> 1673 | H95: =IFERROR(F95*(FaktorAktivnosti),"") -> 2172 | I95: 499 | J95: 10581 | K95: =IFERROR(IF(Standardno,J95/KalPoFunti,J95/KalPoFunti/2.2),"") -> 3.0 | L95: =IFERROR(TežinaKojuTrebaIzgubitiPovećati-K95,"") -> 11.98 | M95: =IFERROR(IF(B94<>"",L95/(TežinaKojuTrebaIzgubitiPovećati),""),"") -> 80%
B96: 2022-11-11 | D96: 86 | E96: 137.9 | F96: =IFERROR(BMRPrilikomTrčanja,"") -> 1400 | G96: =IFERROR(IF(K95>0,F95*FaktorAktivnosti+IF(CiljnaTelesnaTežina="Održavanje",0,IF(CiljnaTelesnaTežina="SMANJI",-500,IF(CiljnaTelesnaTežina="Povećaj",500))),""),"") -> 1672 | H96: =IFERROR(F96*(FaktorAktivnosti),"") -> 2171 | I96: 499 | J96: 10082 | K96: =IFERROR(IF(Standardno,J96/KalPoFunti,J96/KalPoFunti/2.2),"") -> 2.9 | L96: =IFERROR(TežinaKojuTrebaIzgubitiPovećati-K96,"") -> 12.12 | M96: =IFERROR(IF(B95<>"",L96/(TežinaKojuTrebaIzgubitiPovećati),""),"") -> 81%
B97: 2022-11-12 | D97: 87 | E97: 137.7 | F97: =IFERROR(BMRPrilikomTrčanja,"") -> 1400 | G97: =IFERROR(IF(K96>0,F96*FaktorAktivnosti+IF(CiljnaTelesnaTežina="Održavanje",0,IF(CiljnaTelesnaTežina="SMANJI",-500,IF(CiljnaTelesnaTežina="Povećaj",500))),""),"") -> 1671 | H97: =IFERROR(F97*(FaktorAktivnosti),"") -> 2170 | I97: 499 | J97: 9583 | K97: =IFERROR(IF(Standardno,J97/KalPoFunti,J97/KalPoFunti/2.2),"") -> 2.7 | L97: =IFERROR(TežinaKojuTrebaIzgubitiPovećati-K97,"") -> 12.26 | M97: =IFERROR(IF(B96<>"",L97/(TežinaKojuTrebaIzgubitiPovećati),""),"") -> 82%
B98: 2022-11-13 | D98: 88 | E98: 137.6 | F98: =IFERROR(BMRPrilikomTrčanja,"") -> 1399 | G98: =IFERROR(IF(K97>0,F97*FaktorAktivnosti+IF(CiljnaTelesnaTežina="Održavanje",0,IF(CiljnaTelesnaTežina="SMANJI",-500,IF(CiljnaTelesnaTežina="Povećaj",500))),""),"") -> 1670 | H98: =IFERROR(F98*(FaktorAktivnosti),"") -> 2169 | I98: 499 | J98: 9084 | K98: =IFERROR(IF(Standardno,J98/KalPoFunti,J98/KalPoFunti/2.2),"") -> 2.6 | L98: =IFERROR(TežinaKojuTrebaIzgubitiPovećati-K98,"") -> 12.40 | M98: =IFERROR(IF(B97<>"",L98/(TežinaKojuTrebaIzgubitiPovećati),""),"") -> 83%
B99: 2022-11-14 | D99: 89 | E99: 137.5 | F99: =IFERROR(BMRPrilikomTrčanja,"") -> 1399 | G99: =IFERROR(IF(K98>0,F98*FaktorAktivnosti+IF(CiljnaTelesnaTežina="Održavanje",0,IF(CiljnaTelesnaTežina="SMANJI",-500,IF(CiljnaTelesnaTežina="Povećaj",500))),""),"") -> 1669 | H99: =IFERROR(F99*(FaktorAktivnosti),"") -> 2168 | I99: 499 | J99: 8585 | K99: =IFERROR(IF(Standardno,J99/KalPoFunti,J99/KalPoFunti/2.2),"") -> 2.5 | L99: =IFERROR(TežinaKojuTrebaIzgubitiPovećati-K99,"") -> 12.55 | M99: =IFERROR(IF(B98<>"",L99/(TežinaKojuTrebaIzgubitiPovećati),""),"") -> 84%
B100: 2022-11-15 | D100: 90 | E100: 137.3 | F100: =IFERROR(BMRPrilikomTrčanja,"") -> 1398 | G100: =IFERROR(IF(K99>0,F99*FaktorAktivnosti+IF(CiljnaTelesnaTežina="Održavanje",0,IF(CiljnaTelesnaTežina="SMANJI",-500,IF(CiljnaTelesnaTežina="Povećaj",500))),""),"") -> 1668 | H100: =IFERROR(F100*(FaktorAktivnosti),"") -> 2167 | I100: 499 | J100: 8086 | K100: =IFERROR(IF(Standardno,J100/KalPoFunti,J100/KalPoFunti/2.2),"") -> 2.3 | L100: =IFERROR(TežinaKojuTrebaIzgubitiPovećati-K100,"") -> 12.69 | M100: =IFERROR(IF(B99<>"",L100/(TežinaKojuTrebaIzgubitiPovećati),""),"") -> 85%
B101: 2022-11-16 | D101: 91 | E101: 137.2 | F101: =IFERROR(BMRPrilikomTrčanja,"") -> 1397 | G101: =IFERROR(IF(K100>0,F100*FaktorAktivnosti+IF(CiljnaTelesnaTežina="Održavanje",0,IF(CiljnaTelesnaTežina="SMANJI",-500,IF(CiljnaTelesnaTežina="Povećaj",500))),""),"") -> 1667 | H101: =IFERROR(F101*(FaktorAktivnosti),"") -> 2166 | I101: 499 | J101: 7587 | K101: =IFERROR(IF(Standardno,J101/KalPoFunti,J101/KalPoFunti/2.2),"") -> 2.2 | L101: =IFERROR(TežinaKojuTrebaIzgubitiPovećati-K101,"") -> 12.83 | M101: =IFERROR(IF(B100<>"",L101/(TežinaKojuTrebaIzgubitiPovećati),""),"") -> 86%
B102: 2022-11-17 | C102: 14 | D102: 92 | E102: 137.0 | F102: =IFERROR(BMRPrilikomTrčanja,"") -> 1397 | G102: =IFERROR(IF(K101>0,F101*FaktorAktivnosti+IF(CiljnaTelesnaTežina="Održavanje",0,IF(CiljnaTelesnaTežina="SMANJI",-500,IF(CiljnaTelesnaTežina="Povećaj",500))),""),"") -> 1666 | H102: =IFERROR(F102*(FaktorAktivnosti),"") -> 2165 | I102: 499 | J102: 7087 | K102: =IFERROR(IF(Standardno,J102/KalPoFunti,J102/KalPoFunti/2.2),"") -> 2.0 | L102: =IFERROR(TežinaKojuTrebaIzgubitiPovećati-K102,"") -> 12.98 | M102: =IFERROR(IF(B101<>"",L102/(TežinaKojuTrebaIzgubitiPovećati),""),"") -> 87%
B103: 2022-11-18 | D103: 93 | E103: 136.9 | F103: =IFERROR(BMRPrilikomTrčanja,"") -> 1396 | G103: =IFERROR(IF(K102>0,F102*FaktorAktivnosti+IF(CiljnaTelesnaTežina="Održavanje",0,IF(CiljnaTelesnaTežina="SMANJI",-500,IF(CiljnaTelesnaTežina="Povećaj",500))),""),"") -> 1665 | H103: =IFERROR(F103*(FaktorAktivnosti),"") -> 2164 | I103: 499 | J103: 6588 | K103: =IFERROR(IF(Standardno,J103/KalPoFunti,J103/KalPoFunti/2.2),"") -> 1.9 | L103: =IFERROR(TežinaKojuTrebaIzgubitiPovećati-K103,"") -> 13.12 | M103: =IFERROR(IF(B102<>"",L103/(TežinaKojuTrebaIzgubitiPovećati),""),"") -> 87%
B104: 2022-11-19 | D104: 94 | E104: 136.7 | F104: =IFERROR(BMRPrilikomTrčanja,"") -> 1396 | G104: =IFERROR(IF(K103>0,F103*FaktorAktivnosti+IF(CiljnaTelesnaTežina="Održavanje",0,IF(CiljnaTelesnaTežina="SMANJI",-500,IF(CiljnaTelesnaTežina="Povećaj",500))),""),"") -> 1664 | H104: =IFERROR(F104*(FaktorAktivnosti),"") -> 2163 | I104: 499 | J104: 6089 | K104: =IFERROR(IF(Standardno,J104/KalPoFunti,J104/KalPoFunti/2.2),"") -> 1.7 | L104: =IFERROR(TežinaKojuTrebaIzgubitiPovećati-K104,"") -> 13.26 | M104: =IFERROR(IF(B103<>"",L104/(TežinaKojuTrebaIzgubitiPovećati),""),"") -> 88%
B105: 2022-11-20 | D105: 95 | E105: 136.6 | F105: =IFERROR(BMRPrilikomTrčanja,"") -> 1395 | G105: =IFERROR(IF(K104>0,F104*FaktorAktivnosti+IF(CiljnaTelesnaTežina="Održavanje",0,IF(CiljnaTelesnaTežina="SMANJI",-500,IF(CiljnaTelesnaTežina="Povećaj",500))),""),"") -> 1663 | H105: =IFERROR(F105*(FaktorAktivnosti),"") -> 2162 | I105: 499 | J105: 5590 | K105: =IFERROR(IF(Standardno,J105/KalPoFunti,J105/KalPoFunti/2.2),"") -> 1.6 | L105: =IFERROR(TežinaKojuTrebaIzgubitiPovećati-K105,"") -> 13.40 | M105: =IFERROR(IF(B104<>"",L105/(TežinaKojuTrebaIzgubitiPovećati),""),"") -> 89%
B106: 2022-11-21 | D106: 96 | E106: 136.5 | F106: =IFERROR(BMRPrilikomTrčanja,"") -> 1394 | G106: =IFERROR(IF(K105>0,F105*FaktorAktivnosti+IF(CiljnaTelesnaTežina="Održavanje",0,IF(CiljnaTelesnaTežina="SMANJI",-500,IF(CiljnaTelesnaTežina="Povećaj",500))),""),"") -> 1662 | H106: =IFERROR(F106*(FaktorAktivnosti),"") -> 2161 | I106: 499 | J106: 5091 | K106: =IFERROR(IF(Standardno,J106/KalPoFunti,J106/KalPoFunti/2.2),"") -> 1.5 | L106: =IFERROR(TežinaKojuTrebaIzgubitiPovećati-K106,"") -> 13.55 | M106: =IFERROR(IF(B105<>"",L106/(TežinaKojuTrebaIzgubitiPovećati),""),"") -> 90%
B107: 2022-11-22 | D107: 97 | E107: 136.3 | F107: =IFERROR(BMRPrilikomTrčanja,"") -> 1394 | G107: =IFERROR(IF(K106>0,F106*FaktorAktivnosti+IF(CiljnaTelesnaTežina="Održavanje",0,IF(CiljnaTelesnaTežina="SMANJI",-500,IF(CiljnaTelesnaTežina="Povećaj",500))),""),"") -> 1661 | H107: =IFERROR(F107*(FaktorAktivnosti),"") -> 2160 | I107: 499 | J107: 4592 | K107: =IFERROR(IF(Standardno,J107/KalPoFunti,J107/KalPoFunti/2.2),"") -> 1.3 | L107: =IFERROR(TežinaKojuTrebaIzgubitiPovećati-K107,"") -> 13.69 | M107: =IFERROR(IF(B106<>"",L107/(TežinaKojuTrebaIzgubitiPovećati),""),"") -> 91%
B108: 2022-11-23 | D108: 98 | E108: 136.2 | F108: =IFERROR(BMRPrilikomTrčanja,"") -> 1393 | G108: =IFERROR(IF(K107>0,F107*FaktorAktivnosti+IF(CiljnaTelesnaTežina="Održavanje",0,IF(CiljnaTelesnaTežina="SMANJI",-500,IF(CiljnaTelesnaTežina="Povećaj",500))),""),"") -> 1660 | H108: =IFERROR(F108*(FaktorAktivnosti),"") -> 2159 | I108: 499 | J108: 4093 | K108: =IFERROR(IF(Standardno,J108/KalPoFunti,J108/KalPoFunti/2.2),"") -> 1.2 | L108: =IFERROR(TežinaKojuTrebaIzgubitiPovećati-K108,"") -> 13.83 | M108: =IFERROR(IF(B107<>"",L108/(TežinaKojuTrebaIzgubitiPovećati),""),"") -> 92%
B109: 2022-11-24 | C109: 15 | D109: 99 | E109: 136.0 | F109: =IFERROR(BMRPrilikomTrčanja,"") -> 1392 | G109: =IFERROR(IF(K108>0,F108*FaktorAktivnosti+IF(CiljnaTelesnaTežina="Održavanje",0,IF(CiljnaTelesnaTežina="SMANJI",-500,IF(CiljnaTelesnaTežina="Povećaj",500))),""),"") -> 1659 | H109: =IFERROR(F109*(FaktorAktivnosti),"") -> 2158 | I109: 499 | J109: 3594 | K109: =IFERROR(IF(Standardno,J109/KalPoFunti,J109/KalPoFunti/2.2),"") -> 1.0 | L109: =IFERROR(TežinaKojuTrebaIzgubitiPovećati-K109,"") -> 13.97 | M109: =IFERROR(IF(B108<>"",L109/(TežinaKojuTrebaIzgubitiPovećati),""),"") -> 93%
B110: 2022-11-25 | D110: 100 | E110: 135.9 | F110: =IFERROR(BMRPrilikomTrčanja,"") -> 1392 | G110: =IFERROR(IF(K109>0,F109*FaktorAktivnosti+IF(CiljnaTelesnaTežina="Održavanje",0,IF(CiljnaTelesnaTežina="SMANJI",-500,IF(CiljnaTelesnaTežina="Povećaj",500))),""),"") -> 1658 | H110: =IFERROR(F110*(FaktorAktivnosti),"") -> 2157 | I110: 499 | J110: 3095 | K110: =IFERROR(IF(Standardno,J110/KalPoFunti,J110/KalPoFunti/2.2),"") -> 0.9 | L110: =IFERROR(TežinaKojuTrebaIzgubitiPovećati-K110,"") -> 14.12 | M110: =IFERROR(IF(B109<>"",L110/(TežinaKojuTrebaIzgubitiPovećati),""),"") -> 94%
B111: 2022-11-26 | D111: 101 | E111: 135.7 | F111: =IFERROR(BMRPrilikomTrčanja,"") -> 1391 | G111: =IFERROR(IF(K110>0,F110*FaktorAktivnosti+IF(CiljnaTelesnaTežina="Održavanje",0,IF(CiljnaTelesnaTežina="SMANJI",-500,IF(CiljnaTelesnaTežina="Povećaj",500))),""),"") -> 1657 | H111: =IFERROR(F111*(FaktorAktivnosti),"") -> 2156 | I111: 499 | J111: 2596 | K111: =IFERROR(IF(Standardno,J111/KalPoFunti,J111/KalPoFunti/2.2),"") -> 0.7 | L111: =IFERROR(TežinaKojuTrebaIzgubitiPovećati-K111,"") -> 14.26 | M111: =IFERROR(IF(B110<>"",L111/(TežinaKojuTrebaIzgubitiPovećati),""),"") -> 95%
B112: 2022-11-27 | D112: 102 | E112: 135.6 | F112: =IFERROR(BMRPrilikomTrčanja,"") -> 1391 | G112: =IFERROR(IF(K111>0,F111*FaktorAktivnosti+IF(CiljnaTelesnaTežina="Održavanje",0,IF(CiljnaTelesnaTežina="SMANJI",-500,IF(CiljnaTelesnaTežina="Povećaj",500))),""),"") -> 1656 | H112: =IFERROR(F112*(FaktorAktivnosti),"") -> 2155 | I112: 499 | J112: 2097 | K112: =IFERROR(IF(Standardno,J112/KalPoFunti,J112/KalPoFunti/2.2),"") -> 0.6 | L112: =IFERROR(TežinaKojuTrebaIzgubitiPovećati-K112,"") -> 14.40 | M112: =IFERROR(IF(B111<>"",L112/(TežinaKojuTrebaIzgubitiPovećati),""),"") -> 96%
B113: 2022-11-28 | D113: 103 | E113: 135.5 | F113: =IFERROR(BMRPrilikomTrčanja,"") -> 1390 | G113: =IFERROR(IF(K112>0,F112*FaktorAktivnosti+IF(CiljnaTelesnaTežina="Održavanje",0,IF(CiljnaTelesnaTežina="SMANJI",-500,IF(CiljnaTelesnaTežina="Povećaj",500))),""),"") -> 1655 | H113: =IFERROR(F113*(FaktorAktivnosti),"") -> 2154 | I113: 499 | J113: 1598 | K113: =IFERROR(IF(Standardno,J113/KalPoFunti,J113/KalPoFunti/2.2),"") -> 0.5 | L113: =IFERROR(TežinaKojuTrebaIzgubitiPovećati-K113,"") -> 14.54 | M113: =IFERROR(IF(B112<>"",L113/(TežinaKojuTrebaIzgubitiPovećati),""),"") -> 97%
B114: 2022-11-29 | D114: 104 | E114: 135.3 | F114: =IFERROR(BMRPrilikomTrčanja,"") -> 1389 | G114: =IFERROR(IF(K113>0,F113*FaktorAktivnosti+IF(CiljnaTelesnaTežina="Održavanje",0,IF(CiljnaTelesnaTežina="SMANJI",-500,IF(CiljnaTelesnaTežina="Povećaj",500))),""),"") -> 1654 | H114: =IFERROR(F114*(FaktorAktivnosti),"") -> 2153 | I114: 499 | J114: 1099 | K114: =IFERROR(IF(Standardno,J114/KalPoFunti,J114/KalPoFunti/2.2),"") -> 0.3 | L114: =IFERROR(TežinaKojuTrebaIzgubitiPovećati-K114,"") -> 14.69 | M114: =IFERROR(IF(B113<>"",L114/(TežinaKojuTrebaIzgubitiPovećati),""),"") -> 98%
B115: 2022-11-30 | D115: 105 | E115: 135.2 | F115: =IFERROR(BMRPrilikomTrčanja,"") -> 1389 | G115: =IFERROR(IF(K114>0,F114*FaktorAktivnosti+IF(CiljnaTelesnaTežina="Održavanje",0,IF(CiljnaTelesnaTežina="SMANJI",-500,IF(CiljnaTelesnaTežina="Povećaj",500))),""),"") -> 1653 | H115: =IFERROR(F115*(FaktorAktivnosti),"") -> 2152 | I115: 499 | J115: 600 | K115: =IFERROR(IF(Standardno,J115/KalPoFunti,J115/KalPoFunti/2.2),"") -> 0.2 | L115: =IFERROR(TežinaKojuTrebaIzgubitiPovećati-K115,"") -> 14.83 | M115: =IFERROR(IF(B114<>"",L115/(TežinaKojuTrebaIzgubitiPovećati),""),"") -> 99%
B116: 2022-12-01 | C116: 16 | D116: 106 | E116: 135.0 | F116: =IFERROR(BMRPrilikomTrčanja,"") -> 1388 | G116: =IFERROR(IF(K115>0,F115*FaktorAktivnosti+IF(CiljnaTelesnaTežina="Održavanje",0,IF(CiljnaTelesnaTežina="SMANJI",-500,IF(CiljnaTelesnaTežina="Povećaj",500))),""),"") -> 1652 | H116: =IFERROR(F116*(FaktorAktivnosti),"") -> 2152 | I116: 499 | J116: 101 | K116: =IFERROR(IF(Standardno,J116/KalPoFunti,J116/KalPoFunti/2.2),"") -> 0.0 | L116: =IFERROR(TežinaKojuTrebaIzgubitiPovećati-K116,"") -> 14.97 | M116: =IFERROR(IF(B115<>"",L116/(TežinaKojuTrebaIzgubitiPovećati),""),"") -> 100%
B117: 2022-12-02 | D117: 107 | E117: 134.9 | F117: =IFERROR(BMRPrilikomTrčanja,"") -> 1387 | G117: =IFERROR(IF(K116>0,F116*FaktorAktivnosti+IF(CiljnaTelesnaTežina="Održavanje",0,IF(CiljnaTelesnaTežina="SMANJI",-500,IF(CiljnaTelesnaTežina="Povećaj",500))),""),"") -> 1652 | H117: =IFERROR(F117*(FaktorAktivnosti),"") -> 2151 | I117: 499 | J117: -398 | K117: =IFERROR(IF(Standardno,J117/KalPoFunti,J117/KalPoFunti/2.2),"") -> -0.1 | L117: =IFERROR(TežinaKojuTrebaIzgubitiPovećati-K117,"") -> 15.11 | M117: =IFERROR(IF(B116<>"",L117/(TežinaKojuTrebaIzgubitiPovećati),""),"") -> 101%
F118: =IFERROR(BMRPrilikomTrčanja,"") ->  | G118: =IFERROR(IF(K117>0,F117*FaktorAktivnosti+IF(CiljnaTelesnaTežina="Održavanje",0,IF(CiljnaTelesnaTežina="SMANJI",-500,IF(CiljnaTelesnaTežina="Povećaj",500))),""),"") ->  | H118: =IFERROR(F118*(FaktorAktivnosti),"") ->  | K118: =IFERROR(IF(Standardno,J118/KalPoFunti,J118/KalPoFunti/2.2),"") ->  | L118: =IFERROR(TežinaKojuTrebaIzgubitiPovećati-K118,"") ->  | M118: =IFERROR(IF(B117<>"",L118/(TežinaKojuTrebaIzgubitiPovećati),""),"") -> 
F119: =IFERROR(BMRPrilikomTrčanja,"") ->  | G119: =IFERROR(IF(K118>0,F118*FaktorAktivnosti+IF(CiljnaTelesnaTežina="Održavanje",0,IF(CiljnaTelesnaTežina="SMANJI",-500,IF(CiljnaTelesnaTežina="Povećaj",500))),""),"") ->  | H119: =IFERROR(F119*(FaktorAktivnosti),"") ->  | K119: =IFERROR(IF(Standardno,J119/KalPoFunti,J119/KalPoFunti/2.2),"") ->  | L119: =IFERROR(TežinaKojuTrebaIzgubitiPovećati-K119,"") ->  | M119: =IFERROR(IF(B118<>"",L119/(TežinaKojuTrebaIzgubitiPovećati),""),"") -> 
F120: =IFERROR(BMRPrilikomTrčanja,"") ->  | G120: =IFERROR(IF(K119>0,F119*FaktorAktivnosti+IF(CiljnaTelesnaTežina="Održavanje",0,IF(CiljnaTelesnaTežina="SMANJI",-500,IF(CiljnaTelesnaTežina="Povećaj",500))),""),"") ->  | H120: =IFERROR(F120*(FaktorAktivnosti),"") ->  | K120: =IFERROR(IF(Standardno,J120/KalPoFunti,J120/KalPoFunti/2.2),"") ->  | L120: =IFERROR(TežinaKojuTrebaIzgubitiPovećati-K120,"") ->  | M120: =IFERROR(IF(B119<>"",L120/(TežinaKojuTrebaIzgubitiPovećati),""),"") -> 
F121: =IFERROR(BMRPrilikomTrčanja,"") ->  | G121: =IFERROR(IF(K120>0,F120*FaktorAktivnosti+IF(CiljnaTelesnaTežina="Održavanje",0,IF(CiljnaTelesnaTežina="SMANJI",-500,IF(CiljnaTelesnaTežina="Povećaj",500))),""),"") ->  | H121: =IFERROR(F121*(FaktorAktivnosti),"") ->  | K121: =IFERROR(IF(Standardno,J121/KalPoFunti,J121/KalPoFunti/2.2),"") ->  | L121: =IFERROR(TežinaKojuTrebaIzgubitiPovećati-K121,"") ->  | M121: =IFERROR(IF(B120<>"",L121/(TežinaKojuTrebaIzgubitiPovećati),""),"") -> 
F122: =IFERROR(BMRPrilikomTrčanja,"") ->  | G122: =IFERROR(IF(K121>0,F121*FaktorAktivnosti+IF(CiljnaTelesnaTežina="Održavanje",0,IF(CiljnaTelesnaTežina="SMANJI",-500,IF(CiljnaTelesnaTežina="Povećaj",500))),""),"") ->  | H122: =IFERROR(F122*(FaktorAktivnosti),"") ->  | K122: =IFERROR(IF(Standardno,J122/KalPoFunti,J122/KalPoFunti/2.2),"") ->  | L122: =IFERROR(TežinaKojuTrebaIzgubitiPovećati-K122,"") ->  | M122: =IFERROR(IF(B121<>"",L122/(TežinaKojuTrebaIzgubitiPovećati),""),"") -> 
F123: =IFERROR(BMRPrilikomTrčanja,"") ->  | G123: =IFERROR(IF(K122>0,F122*FaktorAktivnosti+IF(CiljnaTelesnaTežina="Održavanje",0,IF(CiljnaTelesnaTežina="SMANJI",-500,IF(CiljnaTelesnaTežina="Povećaj",500))),""),"") ->  | H123: =IFERROR(F123*(FaktorAktivnosti),"") ->  | K123: =IFERROR(IF(Standardno,J123/KalPoFunti,J123/KalPoFunti/2.2),"") ->  | L123: =IFERROR(TežinaKojuTrebaIzgubitiPovećati-K123,"") ->  | M123: =IFERROR(IF(B122<>"",L123/(TežinaKojuTrebaIzgubitiPovećati),""),"") -> 
F124: =IFERROR(BMRPrilikomTrčanja,"") ->  | G124: =IFERROR(IF(K123>0,F123*FaktorAktivnosti+IF(CiljnaTelesnaTežina="Održavanje",0,IF(CiljnaTelesnaTežina="SMANJI",-500,IF(CiljnaTelesnaTežina="Povećaj",500))),""),"") ->  | H124: =IFERROR(F124*(FaktorAktivnosti),"") ->  | K124: =IFERROR(IF(Standardno,J124/KalPoFunti,J124/KalPoFunti/2.2),"") ->  | L124: =IFERROR(TežinaKojuTrebaIzgubitiPovećati-K124,"") ->  | M124: =IFERROR(IF(B123<>"",L124/(TežinaKojuTrebaIzgubitiPovećati),""),"") -> 
F125: =IFERROR(BMRPrilikomTrčanja,"") ->  | G125: =IFERROR(IF(K124>0,F124*FaktorAktivnosti+IF(CiljnaTelesnaTežina="Održavanje",0,IF(CiljnaTelesnaTežina="SMANJI",-500,IF(CiljnaTelesnaTežina="Povećaj",500))),""),"") ->  | H125: =IFERROR(F125*(FaktorAktivnosti),"") ->  | K125: =IFERROR(IF(Standardno,J125/KalPoFunti,J125/KalPoFunti/2.2),"") ->  | L125: =IFERROR(TežinaKojuTrebaIzgubitiPovećati-K125,"") ->  | M125: =IFERROR(IF(B124<>"",L125/(TežinaKojuTrebaIzgubitiPovećati),""),"") -> 
F126: =IFERROR(BMRPrilikomTrčanja,"") ->  | G126: =IFERROR(IF(K125>0,F125*FaktorAktivnosti+IF(CiljnaTelesnaTežina="Održavanje",0,IF(CiljnaTelesnaTežina="SMANJI",-500,IF(CiljnaTelesnaTežina="Povećaj",500))),""),"") ->  | H126: =IFERROR(F126*(FaktorAktivnosti),"") ->  | K126: =IFERROR(IF(Standardno,J126/KalPoFunti,J126/KalPoFunti/2.2),"") ->  | L126: =IFERROR(TežinaKojuTrebaIzgubitiPovećati-K126,"") ->  | M126: =IFERROR(IF(B125<>"",L126/(TežinaKojuTrebaIzgubitiPovećati),""),"") -> 
F127: =IFERROR(BMRPrilikomTrčanja,"") ->  | G127: =IFERROR(IF(K126>0,F126*FaktorAktivnosti+IF(CiljnaTelesnaTežina="Održavanje",0,IF(CiljnaTelesnaTežina="SMANJI",-500,IF(CiljnaTelesnaTežina="Povećaj",500))),""),"") ->  | H127: =IFERROR(F127*(FaktorAktivnosti),"") ->  | K127: =IFERROR(IF(Standardno,J127/KalPoFunti,J127/KalPoFunti/2.2),"") ->  | L127: =IFERROR(TežinaKojuTrebaIzgubitiPovećati-K127,"") ->  | M127: =IFERROR(IF(B126<>"",L127/(TežinaKojuTrebaIzgubitiPovećati),""),"") -> 
F128: =IFERROR(BMRPrilikomTrčanja,"") ->  | G128: =IFERROR(IF(K127>0,F127*FaktorAktivnosti+IF(CiljnaTelesnaTežina="Održavanje",0,IF(CiljnaTelesnaTežina="SMANJI",-500,IF(CiljnaTelesnaTežina="Povećaj",500))),""),"") ->  | H128: =IFERROR(F128*(FaktorAktivnosti),"") ->  | K128: =IFERROR(IF(Standardno,J128/KalPoFunti,J128/KalPoFunti/2.2),"") ->  | L128: =IFERROR(TežinaKojuTrebaIzgubitiPovećati-K128,"") ->  | M128: =IFERROR(IF(B127<>"",L128/(TežinaKojuTrebaIzgubitiPovećati),""),"") -> 
F129: =IFERROR(BMRPrilikomTrčanja,"") ->  | G129: =IFERROR(IF(K128>0,F128*FaktorAktivnosti+IF(CiljnaTelesnaTežina="Održavanje",0,IF(CiljnaTelesnaTežina="SMANJI",-500,IF(CiljnaTelesnaTežina="Povećaj",500))),""),"") ->  | H129: =IFERROR(F129*(FaktorAktivnosti),"") ->  | K129: =IFERROR(IF(Standardno,J129/KalPoFunti,J129/KalPoFunti/2.2),"") ->  | L129: =IFERROR(TežinaKojuTrebaIzgubitiPovećati-K129,"") ->  | M129: =IFERROR(IF(B128<>"",L129/(TežinaKojuTrebaIzgubitiPovećati),""),"") -> 
F130: =IFERROR(BMRPrilikomTrčanja,"") ->  | G130: =IFERROR(IF(K129>0,F129*FaktorAktivnosti+IF(CiljnaTelesnaTežina="Održavanje",0,IF(CiljnaTelesnaTežina="SMANJI",-500,IF(CiljnaTelesnaTežina="Povećaj",500))),""),"") ->  | H130: =IFERROR(F130*(FaktorAktivnosti),"") ->  | K130: =IFERROR(IF(Standardno,J130/KalPoFunti,J130/KalPoFunti/2.2),"") ->  | L130: =IFERROR(TežinaKojuTrebaIzgubitiPovećati-K130,"") ->  | M130: =IFERROR(IF(B129<>"",L130/(TežinaKojuTrebaIzgubitiPovećati),""),"") -> 
F131: =IFERROR(BMRPrilikomTrčanja,"") ->  | G131: =IFERROR(IF(K130>0,F130*FaktorAktivnosti+IF(CiljnaTelesnaTežina="Održavanje",0,IF(CiljnaTelesnaTežina="SMANJI",-500,IF(CiljnaTelesnaTežina="Povećaj",500))),""),"") ->  | H131: =IFERROR(F131*(FaktorAktivnosti),"") ->  | K131: =IFERROR(IF(Standardno,J131/KalPoFunti,J131/KalPoFunti/2.2),"") ->  | L131: =IFERROR(TežinaKojuTrebaIzgubitiPovećati-K131,"") ->  | M131: =IFERROR(IF(B130<>"",L131/(TežinaKojuTrebaIzgubitiPovećati),""),"") -> 
F132: =IFERROR(BMRPrilikomTrčanja,"") ->  | G132: =IFERROR(IF(K131>0,F131*FaktorAktivnosti+IF(CiljnaTelesnaTežina="Održavanje",0,IF(CiljnaTelesnaTežina="SMANJI",-500,IF(CiljnaTelesnaTežina="Povećaj",500))),""),"") ->  | H132: =IFERROR(F132*(FaktorAktivnosti),"") ->  | K132: =IFERROR(IF(Standardno,J132/KalPoFunti,J132/KalPoFunti/2.2),"") ->  | L132: =IFERROR(TežinaKojuTrebaIzgubitiPovećati-K132,"") ->  | M132: =IFERROR(IF(B131<>"",L132/(TežinaKojuTrebaIzgubitiPovećati),""),"") -> 
F133: =IFERROR(BMRPrilikomTrčanja,"") ->  | G133: =IFERROR(IF(K132>0,F132*FaktorAktivnosti+IF(CiljnaTelesnaTežina="Održavanje",0,IF(CiljnaTelesnaTežina="SMANJI",-500,IF(CiljnaTelesnaTežina="Povećaj",500))),""),"") ->  | H133: =IFERROR(F133*(FaktorAktivnosti),"") ->  | K133: =IFERROR(IF(Standardno,J133/KalPoFunti,J133/KalPoFunti/2.2),"") ->  | L133: =IFERROR(TežinaKojuTrebaIzgubitiPovećati-K133,"") ->  | M133: =IFERROR(IF(B132<>"",L133/(TežinaKojuTrebaIzgubitiPovećati),""),"") -> 
F134: =IFERROR(BMRPrilikomTrčanja,"") ->  | G134: =IFERROR(IF(K133>0,F133*FaktorAktivnosti+IF(CiljnaTelesnaTežina="Održavanje",0,IF(CiljnaTelesnaTežina="SMANJI",-500,IF(CiljnaTelesnaTežina="Povećaj",500))),""),"") ->  | H134: =IFERROR(F134*(FaktorAktivnosti),"") ->  | K134: =IFERROR(IF(Standardno,J134/KalPoFunti,J134/KalPoFunti/2.2),"") ->  | L134: =IFERROR(TežinaKojuTrebaIzgubitiPovećati-K134,"") ->  | M134: =IFERROR(IF(B133<>"",L134/(TežinaKojuTrebaIzgubitiPovećati),""),"") -> 
F135: =IFERROR(BMRPrilikomTrčanja,"") ->  | G135: =IFERROR(IF(K134>0,F134*FaktorAktivnosti+IF(CiljnaTelesnaTežina="Održavanje",0,IF(CiljnaTelesnaTežina="SMANJI",-500,IF(CiljnaTelesnaTežina="Povećaj",500))),""),"") ->  | H135: =IFERROR(F135*(FaktorAktivnosti),"") ->  | K135: =IFERROR(IF(Standardno,J135/KalPoFunti,J135/KalPoFunti/2.2),"") ->  | L135: =IFERROR(TežinaKojuTrebaIzgubitiPovećati-K135,"") ->  | M135: =IFERROR(IF(B134<>"",L135/(TežinaKojuTrebaIzgubitiPovećati),""),"") -> 
F136: =IFERROR(BMRPrilikomTrčanja,"") ->  | G136: =IFERROR(IF(K135>0,F135*FaktorAktivnosti+IF(CiljnaTelesnaTežina="Održavanje",0,IF(CiljnaTelesnaTežina="SMANJI",-500,IF(CiljnaTelesnaTežina="Povećaj",500))),""),"") ->  | H136: =IFERROR(F136*(FaktorAktivnosti),"") ->  | K136: =IFERROR(IF(Standardno,J136/KalPoFunti,J136/KalPoFunti/2.2),"") ->  | L136: =IFERROR(TežinaKojuTrebaIzgubitiPovećati-K136,"") ->  | M136: =IFERROR(IF(B135<>"",L136/(TežinaKojuTrebaIzgubitiPovećati),""),"") -> 
F137: =IFERROR(BMRPrilikomTrčanja,"") ->  | G137: =IFERROR(IF(K136>0,F136*FaktorAktivnosti+IF(CiljnaTelesnaTežina="Održavanje",0,IF(CiljnaTelesnaTežina="SMANJI",-500,IF(CiljnaTelesnaTežina="Povećaj",500))),""),"") ->  | H137: =IFERROR(F137*(FaktorAktivnosti),"") ->  | K137: =IFERROR(IF(Standardno,J137/KalPoFunti,J137/KalPoFunti/2.2),"") ->  | L137: =IFERROR(TežinaKojuTrebaIzgubitiPovećati-K137,"") ->  | M137: =IFERROR(IF(B136<>"",L137/(TežinaKojuTrebaIzgubitiPovećati),""),"") -> 
F138: =IFERROR(BMRPrilikomTrčanja,"") ->  | G138: =IFERROR(IF(K137>0,F137*FaktorAktivnosti+IF(CiljnaTelesnaTežina="Održavanje",0,IF(CiljnaTelesnaTežina="SMANJI",-500,IF(CiljnaTelesnaTežina="Povećaj",500))),""),"") ->  | H138: =IFERROR(F138*(FaktorAktivnosti),"") ->  | K138: =IFERROR(IF(Standardno,J138/KalPoFunti,J138/KalPoFunti/2.2),"") ->  | L138: =IFERROR(TežinaKojuTrebaIzgubitiPovećati-K138,"") ->  | M138: =IFERROR(IF(B137<>"",L138/(TežinaKojuTrebaIzgubitiPovećati),""),"") -> 
F139: =IFERROR(BMRPrilikomTrčanja,"") ->  | G139: =IFERROR(IF(K138>0,F138*FaktorAktivnosti+IF(CiljnaTelesnaTežina="Održavanje",0,IF(CiljnaTelesnaTežina="SMANJI",-500,IF(CiljnaTelesnaTežina="Povećaj",500))),""),"") ->  | H139: =IFERROR(F139*(FaktorAktivnosti),"") ->  | I139: =IFERROR(IF(CiljnaTelesnaTežina="Povećaj",G139-H139,H139-G139),"") ->  | K139: =IFERROR(IF(Standardno,J139/KalPoFunti,J139/KalPoFunti/2.2),"") ->  | L139: =IFERROR(TežinaKojuTrebaIzgubitiPovećati-K139,"") ->  | M139: =IFERROR(IF(B138<>"",L139/(TežinaKojuTrebaIzgubitiPovećati),""),"") -> 
B140: =IFERROR(IF(K139>0,B139+1,""),"") ->  | D140: =IFERROR(IF(K139>0,D139+1,""),"") ->  | E140: =IFERROR(IF($D140<>"",E139-(I139/KalPoFunti),""),"") ->  | F140: =IFERROR(BMRPrilikomTrčanja,"") ->  | G140: =IFERROR(IF(K139>0,F139*FaktorAktivnosti+IF(CiljnaTelesnaTežina="Održavanje",0,IF(CiljnaTelesnaTežina="SMANJI",-500,IF(CiljnaTelesnaTežina="Povećaj",500))),""),"") ->  | H140: =IFERROR(F140*(FaktorAktivnosti),"") ->  | K140: =IFERROR(IF(Standardno,J140/KalPoFunti,J140/KalPoFunti/2.2),"") ->  | L140: =IFERROR(TežinaKojuTrebaIzgubitiPovećati-K140,"") ->  | M140: =IFERROR(IF(B139<>"",L140/(TežinaKojuTrebaIzgubitiPovećati),""),"") -> 
C141: =IFERROR(IF(D141<>"",IF(MOD(D141,7)=1,(D140/7)+1,""),""),"") ->  | F141: =IFERROR(BMRPrilikomTrčanja,"") ->  | G141: =IFERROR(IF(K140>0,F140*FaktorAktivnosti+IF(CiljnaTelesnaTežina="Održavanje",0,IF(CiljnaTelesnaTežina="SMANJI",-500,IF(CiljnaTelesnaTežina="Povećaj",500))),""),"") ->  | H141: =IFERROR(F141*(FaktorAktivnosti),"") ->  | J141: =IFERROR(J140-I141,"") ->  | K141: =IFERROR(IF(Standardno,J141/KalPoFunti,J141/KalPoFunti/2.2),"") ->  | L141: =IFERROR(TežinaKojuTrebaIzgubitiPovećati-K141,"") ->  | M141: =IFERROR(IF(B140<>"",L141/(TežinaKojuTrebaIzgubitiPovećati),""),"") -> 
F142: =IFERROR(BMRPrilikomTrčanja,"") ->  | G142: =IFERROR(IF(K141>0,F141*FaktorAktivnosti+IF(CiljnaTelesnaTežina="Održavanje",0,IF(CiljnaTelesnaTežina="SMANJI",-500,IF(CiljnaTelesnaTežina="Povećaj",500))),""),"") ->  | H142: =IFERROR(F142*(FaktorAktivnosti),"") ->  | K142: =IFERROR(IF(Standardno,J142/KalPoFunti,J142/KalPoFunti/2.2),"") ->  | L142: =IFERROR(TežinaKojuTrebaIzgubitiPovećati-K142,"") ->  | M142: =IFERROR(IF(B141<>"",L142/(TežinaKojuTrebaIzgubitiPovećati),""),"") -> 
F143: =IFERROR(BMRPrilikomTrčanja,"") ->  | G143: =IFERROR(IF(K142>0,F142*FaktorAktivnosti+IF(CiljnaTelesnaTežina="Održavanje",0,IF(CiljnaTelesnaTežina="SMANJI",-500,IF(CiljnaTelesnaTežina="Povećaj",500))),""),"") ->  | H143: =IFERROR(F143*(FaktorAktivnosti),"") ->  | K143: =IFERROR(IF(Standardno,J143/KalPoFunti,J143/KalPoFunti/2.2),"") ->  | L143: =IFERROR(TežinaKojuTrebaIzgubitiPovećati-K143,"") ->  | M143: =IFERROR(IF(B142<>"",L143/(TežinaKojuTrebaIzgubitiPovećati),""),"") -> 
F144: =IFERROR(BMRPrilikomTrčanja,"") ->  | G144: =IFERROR(IF(K143>0,F143*FaktorAktivnosti+IF(CiljnaTelesnaTežina="Održavanje",0,IF(CiljnaTelesnaTežina="SMANJI",-500,IF(CiljnaTelesnaTežina="Povećaj",500))),""),"") ->  | H144: =IFERROR(F144*(FaktorAktivnosti),"") ->  | K144: =IFERROR(IF(Standardno,J144/KalPoFunti,J144/KalPoFunti/2.2),"") ->  | L144: =IFERROR(TežinaKojuTrebaIzgubitiPovećati-K144,"") ->  | M144: =IFERROR(IF(B143<>"",L144/(TežinaKojuTrebaIzgubitiPovećati),""),"") -> 
F145: =IFERROR(BMRPrilikomTrčanja,"") ->  | G145: =IFERROR(IF(K144>0,F144*FaktorAktivnosti+IF(CiljnaTelesnaTežina="Održavanje",0,IF(CiljnaTelesnaTežina="SMANJI",-500,IF(CiljnaTelesnaTežina="Povećaj",500))),""),"") ->  | H145: =IFERROR(F145*(FaktorAktivnosti),"") ->  | K145: =IFERROR(IF(Standardno,J145/KalPoFunti,J145/KalPoFunti/2.2),"") ->  | L145: =IFERROR(TežinaKojuTrebaIzgubitiPovećati-K145,"") ->  | M145: =IFERROR(IF(B144<>"",L145/(TežinaKojuTrebaIzgubitiPovećati),""),"") -> 
F146: =IFERROR(BMRPrilikomTrčanja,"") ->  | G146: =IFERROR(IF(K145>0,F145*FaktorAktivnosti+IF(CiljnaTelesnaTežina="Održavanje",0,IF(CiljnaTelesnaTežina="SMANJI",-500,IF(CiljnaTelesnaTežina="Povećaj",500))),""),"") ->  | H146: =IFERROR(F146*(FaktorAktivnosti),"") ->  | K146: =IFERROR(IF(Standardno,J146/KalPoFunti,J146/KalPoFunti/2.2),"") ->  | L146: =IFERROR(TežinaKojuTrebaIzgubitiPovećati-K146,"") ->  | M146: =IFERROR(IF(B145<>"",L146/(TežinaKojuTrebaIzgubitiPovećati),""),"") -> 
F147: =IFERROR(BMRPrilikomTrčanja,"") ->  | G147: =IFERROR(IF(K146>0,F146*FaktorAktivnosti+IF(CiljnaTelesnaTežina="Održavanje",0,IF(CiljnaTelesnaTežina="SMANJI",-500,IF(CiljnaTelesnaTežina="Povećaj",500))),""),"") ->  | H147: =IFERROR(F147*(FaktorAktivnosti),"") ->  | K147: =IFERROR(IF(Standardno,J147/KalPoFunti,J147/KalPoFunti/2.2),"") ->  | L147: =IFERROR(TežinaKojuTrebaIzgubitiPovećati-K147,"") ->  | M147: =IFERROR(IF(B146<>"",L147/(TežinaKojuTrebaIzgubitiPovećati),""),"") -> 
F148: =IFERROR(BMRPrilikomTrčanja,"") ->  | G148: =IFERROR(IF(K147>0,F147*FaktorAktivnosti+IF(CiljnaTelesnaTežina="Održavanje",0,IF(CiljnaTelesnaTežina="SMANJI",-500,IF(CiljnaTelesnaTežina="Povećaj",500))),""),"") ->  | H148: =IFERROR(F148*(FaktorAktivnosti),"") ->  | K148: =IFERROR(IF(Standardno,J148/KalPoFunti,J148/KalPoFunti/2.2),"") ->  | L148: =IFERROR(TežinaKojuTrebaIzgubitiPovećati-K148,"") ->  | M148: =IFERROR(IF(B147<>"",L148/(TežinaKojuTrebaIzgubitiPovećati),""),"") -> 
F149: =IFERROR(BMRPrilikomTrčanja,"") ->  | G149: =IFERROR(IF(K148>0,F148*FaktorAktivnosti+IF(CiljnaTelesnaTežina="Održavanje",0,IF(CiljnaTelesnaTežina="SMANJI",-500,IF(CiljnaTelesnaTežina="Povećaj",500))),""),"") ->  | H149: =IFERROR(F149*(FaktorAktivnosti),"") ->  | K149: =IFERROR(IF(Standardno,J149/KalPoFunti,J149/KalPoFunti/2.2),"") ->  | L149: =IFERROR(TežinaKojuTrebaIzgubitiPovećati-K149,"") ->  | M149: =IFERROR(IF(B148<>"",L149/(TežinaKojuTrebaIzgubitiPovećati),""),"") -> 
F150: =IFERROR(BMRPrilikomTrčanja,"") ->  | G150: =IFERROR(IF(K149>0,F149*FaktorAktivnosti+IF(CiljnaTelesnaTežina="Održavanje",0,IF(CiljnaTelesnaTežina="SMANJI",-500,IF(CiljnaTelesnaTežina="Povećaj",500))),""),"") ->  | H150: =IFERROR(F150*(FaktorAktivnosti),"") ->  | K150: =IFERROR(IF(Standardno,J150/KalPoFunti,J150/KalPoFunti/2.2),"") ->  | L150: =IFERROR(TežinaKojuTrebaIzgubitiPovećati-K150,"") ->  | M150: =IFERROR(IF(B149<>"",L150/(TežinaKojuTrebaIzgubitiPovećati),""),"") -> 
F151: =IFERROR(BMRPrilikomTrčanja,"") ->  | G151: =IFERROR(IF(K150>0,F150*FaktorAktivnosti+IF(CiljnaTelesnaTežina="Održavanje",0,IF(CiljnaTelesnaTežina="SMANJI",-500,IF(CiljnaTelesnaTežina="Povećaj",500))),""),"") ->  | H151: =IFERROR(F151*(FaktorAktivnosti),"") ->  | K151: =IFERROR(IF(Standardno,J151/KalPoFunti,J151/KalPoFunti/2.2),"") ->  | L151: =IFERROR(TežinaKojuTrebaIzgubitiPovećati-K151,"") ->  | M151: =IFERROR(IF(B150<>"",L151/(TežinaKojuTrebaIzgubitiPovećati),""),"") -> 
F152: =IFERROR(BMRPrilikomTrčanja,"") ->  | G152: =IFERROR(IF(K151>0,F151*FaktorAktivnosti+IF(CiljnaTelesnaTežina="Održavanje",0,IF(CiljnaTelesnaTežina="SMANJI",-500,IF(CiljnaTelesnaTežina="Povećaj",500))),""),"") ->  | H152: =IFERROR(F152*(FaktorAktivnosti),"") ->  | K152: =IFERROR(IF(Standardno,J152/KalPoFunti,J152/KalPoFunti/2.2),"") ->  | L152: =IFERROR(TežinaKojuTrebaIzgubitiPovećati-K152,"") ->  | M152: =IFERROR(IF(B151<>"",L152/(TežinaKojuTrebaIzgubitiPovećati),""),"") -> 
F153: =IFERROR(BMRPrilikomTrčanja,"") ->  | G153: =IFERROR(IF(K152>0,F152*FaktorAktivnosti+IF(CiljnaTelesnaTežina="Održavanje",0,IF(CiljnaTelesnaTežina="SMANJI",-500,IF(CiljnaTelesnaTežina="Povećaj",500))),""),"") ->  | H153: =IFERROR(F153*(FaktorAktivnosti),"") ->  | K153: =IFERROR(IF(Standardno,J153/KalPoFunti,J153/KalPoFunti/2.2),"") ->  | L153: =IFERROR(TežinaKojuTrebaIzgubitiPovećati-K153,"") ->  | M153: =IFERROR(IF(B152<>"",L153/(TežinaKojuTrebaIzgubitiPovećati),""),"") -> 
F154: =IFERROR(BMRPrilikomTrčanja,"") ->  | G154: =IFERROR(IF(K153>0,F153*FaktorAktivnosti+IF(CiljnaTelesnaTežina="Održavanje",0,IF(CiljnaTelesnaTežina="SMANJI",-500,IF(CiljnaTelesnaTežina="Povećaj",500))),""),"") ->  | H154: =IFERROR(F154*(FaktorAktivnosti),"") ->  | K154: =IFERROR(IF(Standardno,J154/KalPoFunti,J154/KalPoFunti/2.2),"") ->  | L154: =IFERROR(TežinaKojuTrebaIzgubitiPovećati-K154,"") ->  | M154: =IFERROR(IF(B153<>"",L154/(TežinaKojuTrebaIzgubitiPovećati),""),"") -> 
F155: =IFERROR(BMRPrilikomTrčanja,"") ->  | G155: =IFERROR(IF(K154>0,F154*FaktorAktivnosti+IF(CiljnaTelesnaTežina="Održavanje",0,IF(CiljnaTelesnaTežina="SMANJI",-500,IF(CiljnaTelesnaTežina="Povećaj",500))),""),"") ->  | H155: =IFERROR(F155*(FaktorAktivnosti),"") ->  | K155: =IFERROR(IF(Standardno,J155/KalPoFunti,J155/KalPoFunti/2.2),"") ->  | L155: =IFERROR(TežinaKojuTrebaIzgubitiPovećati-K155,"") ->  | M155: =IFERROR(IF(B154<>"",L155/(TežinaKojuTrebaIzgubitiPovećati),""),"") -> 
F156: =IFERROR(BMRPrilikomTrčanja,"") ->  | G156: =IFERROR(IF(K155>0,F155*FaktorAktivnosti+IF(CiljnaTelesnaTežina="Održavanje",0,IF(CiljnaTelesnaTežina="SMANJI",-500,IF(CiljnaTelesnaTežina="Povećaj",500))),""),"") ->  | H156: =IFERROR(F156*(FaktorAktivnosti),"") ->  | K156: =IFERROR(IF(Standardno,J156/KalPoFunti,J156/KalPoFunti/2.2),"") ->  | L156: =IFERROR(TežinaKojuTrebaIzgubitiPovećati-K156,"") ->  | M156: =IFERROR(IF(B155<>"",L156/(TežinaKojuTrebaIzgubitiPovećati),""),"") -> 
F157: =IFERROR(BMRPrilikomTrčanja,"") ->  | G157: =IFERROR(IF(K156>0,F156*FaktorAktivnosti+IF(CiljnaTelesnaTežina="Održavanje",0,IF(CiljnaTelesnaTežina="SMANJI",-500,IF(CiljnaTelesnaTežina="Povećaj",500))),""),"") ->  | H157: =IFERROR(F157*(FaktorAktivnosti),"") ->  | K157: =IFERROR(IF(Standardno,J157/KalPoFunti,J157/KalPoFunti/2.2),"") ->  | L157: =IFERROR(TežinaKojuTrebaIzgubitiPovećati-K157,"") ->  | M157: =IFERROR(IF(B156<>"",L157/(TežinaKojuTrebaIzgubitiPovećati),""),"") -> 
F158: =IFERROR(BMRPrilikomTrčanja,"") ->  | G158: =IFERROR(IF(K157>0,F157*FaktorAktivnosti+IF(CiljnaTelesnaTežina="Održavanje",0,IF(CiljnaTelesnaTežina="SMANJI",-500,IF(CiljnaTelesnaTežina="Povećaj",500))),""),"") ->  | H158: =IFERROR(F158*(FaktorAktivnosti),"") ->  | K158: =IFERROR(IF(Standardno,J158/KalPoFunti,J158/KalPoFunti/2.2),"") ->  | L158: =IFERROR(TežinaKojuTrebaIzgubitiPovećati-K158,"") ->  | M158: =IFERROR(IF(B157<>"",L158/(TežinaKojuTrebaIzgubitiPovećati),""),"") -> 
F159: =IFERROR(BMRPrilikomTrčanja,"") ->  | G159: =IFERROR(IF(K158>0,F158*FaktorAktivnosti+IF(CiljnaTelesnaTežina="Održavanje",0,IF(CiljnaTelesnaTežina="SMANJI",-500,IF(CiljnaTelesnaTežina="Povećaj",500))),""),"") ->  | H159: =IFERROR(F159*(FaktorAktivnosti),"") ->  | K159: =IFERROR(IF(Standardno,J159/KalPoFunti,J159/KalPoFunti/2.2),"") ->  | L159: =IFERROR(TežinaKojuTrebaIzgubitiPovećati-K159,"") ->  | M159: =IFERROR(IF(B158<>"",L159/(TežinaKojuTrebaIzgubitiPovećati),""),"") -> 
F160: =IFERROR(BMRPrilikomTrčanja,"") ->  | G160: =IFERROR(IF(K159>0,F159*FaktorAktivnosti+IF(CiljnaTelesnaTežina="Održavanje",0,IF(CiljnaTelesnaTežina="SMANJI",-500,IF(CiljnaTelesnaTežina="Povećaj",500))),""),"") ->  | H160: =IFERROR(F160*(FaktorAktivnosti),"") ->  | K160: =IFERROR(IF(Standardno,J160/KalPoFunti,J160/KalPoFunti/2.2),"") ->  | L160: =IFERROR(TežinaKojuTrebaIzgubitiPovećati-K160,"") ->  | M160: =IFERROR(IF(B159<>"",L160/(TežinaKojuTrebaIzgubitiPovećati),""),"") -> 
F161: =IFERROR(BMRPrilikomTrčanja,"") ->  | G161: =IFERROR(IF(K160>0,F160*FaktorAktivnosti+IF(CiljnaTelesnaTežina="Održavanje",0,IF(CiljnaTelesnaTežina="SMANJI",-500,IF(CiljnaTelesnaTežina="Povećaj",500))),""),"") ->  | H161: =IFERROR(F161*(FaktorAktivnosti),"") ->  | K161: =IFERROR(IF(Standardno,J161/KalPoFunti,J161/KalPoFunti/2.2),"") ->  | L161: =IFERROR(TežinaKojuTrebaIzgubitiPovećati-K161,"") ->  | M161: =IFERROR(IF(B160<>"",L161/(TežinaKojuTrebaIzgubitiPovećati),""),"") -> 
F162: =IFERROR(BMRPrilikomTrčanja,"") ->  | G162: =IFERROR(IF(K161>0,F161*FaktorAktivnosti+IF(CiljnaTelesnaTežina="Održavanje",0,IF(CiljnaTelesnaTežina="SMANJI",-500,IF(CiljnaTelesnaTežina="Povećaj",500))),""),"") ->  | H162: =IFERROR(F162*(FaktorAktivnosti),"") ->  | K162: =IFERROR(IF(Standardno,J162/KalPoFunti,J162/KalPoFunti/2.2),"") ->  | L162: =IFERROR(TežinaKojuTrebaIzgubitiPovećati-K162,"") ->  | M162: =IFERROR(IF(B161<>"",L162/(TežinaKojuTrebaIzgubitiPovećati),""),"") -> 
F163: =IFERROR(BMRPrilikomTrčanja,"") ->  | G163: =IFERROR(IF(K162>0,F162*FaktorAktivnosti+IF(CiljnaTelesnaTežina="Održavanje",0,IF(CiljnaTelesnaTežina="SMANJI",-500,IF(CiljnaTelesnaTežina="Povećaj",500))),""),"") ->  | H163: =IFERROR(F163*(FaktorAktivnosti),"") ->  | K163: =IFERROR(IF(Standardno,J163/KalPoFunti,J163/KalPoFunti/2.2),"") ->  | L163: =IFERROR(TežinaKojuTrebaIzgubitiPovećati-K163,"") ->  | M163: =IFERROR(IF(B162<>"",L163/(TežinaKojuTrebaIzgubitiPovećati),""),"") -> 
F164: =IFERROR(BMRPrilikomTrčanja,"") ->  | G164: =IFERROR(IF(K163>0,F163*FaktorAktivnosti+IF(CiljnaTelesnaTežina="Održavanje",0,IF(CiljnaTelesnaTežina="SMANJI",-500,IF(CiljnaTelesnaTežina="Povećaj",500))),""),"") ->  | H164: =IFERROR(F164*(FaktorAktivnosti),"") ->  | K164: =IFERROR(IF(Standardno,J164/KalPoFunti,J164/KalPoFunti/2.2),"") ->  | L164: =IFERROR(TežinaKojuTrebaIzgubitiPovećati-K164,"") ->  | M164: =IFERROR(IF(B163<>"",L164/(TežinaKojuTrebaIzgubitiPovećati),""),"") -> 
F165: =IFERROR(BMRPrilikomTrčanja,"") ->  | G165: =IFERROR(IF(K164>0,F164*FaktorAktivnosti+IF(CiljnaTelesnaTežina="Održavanje",0,IF(CiljnaTelesnaTežina="SMANJI",-500,IF(CiljnaTelesnaTežina="Povećaj",500))),""),"") ->  | H165: =IFERROR(F165*(FaktorAktivnosti),"") ->  | K165: =IFERROR(IF(Standardno,J165/KalPoFunti,J165/KalPoFunti/2.2),"") ->  | L165: =IFERROR(TežinaKojuTrebaIzgubitiPovećati-K165,"") ->  | M165: =IFERROR(IF(B164<>"",L165/(TežinaKojuTrebaIzgubitiPovećati),""),"") -> 
F166: =IFERROR(BMRPrilikomTrčanja,"") ->  | G166: =IFERROR(IF(K165>0,F165*FaktorAktivnosti+IF(CiljnaTelesnaTežina="Održavanje",0,IF(CiljnaTelesnaTežina="SMANJI",-500,IF(CiljnaTelesnaTežina="Povećaj",500))),""),"") ->  | H166: =IFERROR(F166*(FaktorAktivnosti),"") ->  | K166: =IFERROR(IF(Standardno,J166/KalPoFunti,J166/KalPoFunti/2.2),"") ->  | L166: =IFERROR(TežinaKojuTrebaIzgubitiPovećati-K166,"") ->  | M166: =IFERROR(IF(B165<>"",L166/(TežinaKojuTrebaIzgubitiPovećati),""),"") -> 
F167: =IFERROR(BMRPrilikomTrčanja,"") ->  | G167: =IFERROR(IF(K166>0,F166*FaktorAktivnosti+IF(CiljnaTelesnaTežina="Održavanje",0,IF(CiljnaTelesnaTežina="SMANJI",-500,IF(CiljnaTelesnaTežina="Povećaj",500))),""),"") ->  | H167: =IFERROR(F167*(FaktorAktivnosti),"") ->  | K167: =IFERROR(IF(Standardno,J167/KalPoFunti,J167/KalPoFunti/2.2),"") ->  | L167: =IFERROR(TežinaKojuTrebaIzgubitiPovećati-K167,"") ->  | M167: =IFERROR(IF(B166<>"",L167/(TežinaKojuTrebaIzgubitiPovećati),""),"") -> 
F168: =IFERROR(BMRPrilikomTrčanja,"") ->  | G168: =IFERROR(IF(K167>0,F167*FaktorAktivnosti+IF(CiljnaTelesnaTežina="Održavanje",0,IF(CiljnaTelesnaTežina="SMANJI",-500,IF(CiljnaTelesnaTežina="Povećaj",500))),""),"") ->  | H168: =IFERROR(F168*(FaktorAktivnosti),"") ->  | K168: =IFERROR(IF(Standardno,J168/KalPoFunti,J168/KalPoFunti/2.2),"") ->  | L168: =IFERROR(TežinaKojuTrebaIzgubitiPovećati-K168,"") ->  | M168: =IFERROR(IF(B167<>"",L168/(TežinaKojuTrebaIzgubitiPovećati),""),"") -> 
F169: =IFERROR(BMRPrilikomTrčanja,"") ->  | G169: =IFERROR(IF(K168>0,F168*FaktorAktivnosti+IF(CiljnaTelesnaTežina="Održavanje",0,IF(CiljnaTelesnaTežina="SMANJI",-500,IF(CiljnaTelesnaTežina="Povećaj",500))),""),"") ->  | H169: =IFERROR(F169*(FaktorAktivnosti),"") ->  | K169: =IFERROR(IF(Standardno,J169/KalPoFunti,J169/KalPoFunti/2.2),"") ->  | L169: =IFERROR(TežinaKojuTrebaIzgubitiPovećati-K169,"") ->  | M169: =IFERROR(IF(B168<>"",L169/(TežinaKojuTrebaIzgubitiPovećati),""),"") -> 
F170: =IFERROR(BMRPrilikomTrčanja,"") ->  | G170: =IFERROR(IF(K169>0,F169*FaktorAktivnosti+IF(CiljnaTelesnaTežina="Održavanje",0,IF(CiljnaTelesnaTežina="SMANJI",-500,IF(CiljnaTelesnaTežina="Povećaj",500))),""),"") ->  | H170: =IFERROR(F170*(FaktorAktivnosti),"") ->  | K170: =IFERROR(IF(Standardno,J170/KalPoFunti,J170/KalPoFunti/2.2),"") ->  | L170: =IFERROR(TežinaKojuTrebaIzgubitiPovećati-K170,"") ->  | M170: =IFERROR(IF(B169<>"",L170/(TežinaKojuTrebaIzgubitiPovećati),""),"") -> 
F171: =IFERROR(BMRPrilikomTrčanja,"") ->  | G171: =IFERROR(IF(K170>0,F170*FaktorAktivnosti+IF(CiljnaTelesnaTežina="Održavanje",0,IF(CiljnaTelesnaTežina="SMANJI",-500,IF(CiljnaTelesnaTežina="Povećaj",500))),""),"") ->  | H171: =IFERROR(F171*(FaktorAktivnosti),"") ->  | K171: =IFERROR(IF(Standardno,J171/KalPoFunti,J171/KalPoFunti/2.2),"") ->  | L171: =IFERROR(TežinaKojuTrebaIzgubitiPovećati-K171,"") ->  | M171: =IFERROR(IF(B170<>"",L171/(TežinaKojuTrebaIzgubitiPovećati),""),"") -> 
F172: =IFERROR(BMRPrilikomTrčanja,"") ->  | G172: =IFERROR(IF(K171>0,F171*FaktorAktivnosti+IF(CiljnaTelesnaTežina="Održavanje",0,IF(CiljnaTelesnaTežina="SMANJI",-500,IF(CiljnaTelesnaTežina="Povećaj",500))),""),"") ->  | H172: =IFERROR(F172*(FaktorAktivnosti),"") ->  | K172: =IFERROR(IF(Standardno,J172/KalPoFunti,J172/KalPoFunti/2.2),"") ->  | L172: =IFERROR(TežinaKojuTrebaIzgubitiPovećati-K172,"") ->  | M172: =IFERROR(IF(B171<>"",L172/(TežinaKojuTrebaIzgubitiPovećati),""),"") -> 
F173: =IFERROR(BMRPrilikomTrčanja,"") ->  | G173: =IFERROR(IF(K172>0,F172*FaktorAktivnosti+IF(CiljnaTelesnaTežina="Održavanje",0,IF(CiljnaTelesnaTežina="SMANJI",-500,IF(CiljnaTelesnaTežina="Povećaj",500))),""),"") ->  | H173: =IFERROR(F173*(FaktorAktivnosti),"") ->  | K173: =IFERROR(IF(Standardno,J173/KalPoFunti,J173/KalPoFunti/2.2),"") ->  | L173: =IFERROR(TežinaKojuTrebaIzgubitiPovećati-K173,"") ->  | M173: =IFERROR(IF(B172<>"",L173/(TežinaKojuTrebaIzgubitiPovećati),""),"") -> 
F174: =IFERROR(BMRPrilikomTrčanja,"") ->  | G174: =IFERROR(IF(K173>0,F173*FaktorAktivnosti+IF(CiljnaTelesnaTežina="Održavanje",0,IF(CiljnaTelesnaTežina="SMANJI",-500,IF(CiljnaTelesnaTežina="Povećaj",500))),""),"") ->  | H174: =IFERROR(F174*(FaktorAktivnosti),"") ->  | K174: =IFERROR(IF(Standardno,J174/KalPoFunti,J174/KalPoFunti/2.2),"") ->  | L174: =IFERROR(TežinaKojuTrebaIzgubitiPovećati-K174,"") ->  | M174: =IFERROR(IF(B173<>"",L174/(TežinaKojuTrebaIzgubitiPovećati),""),"") -> 
F175: =IFERROR(BMRPrilikomTrčanja,"") ->  | G175: =IFERROR(IF(K174>0,F174*FaktorAktivnosti+IF(CiljnaTelesnaTežina="Održavanje",0,IF(CiljnaTelesnaTežina="SMANJI",-500,IF(CiljnaTelesnaTežina="Povećaj",500))),""),"") ->  | H175: =IFERROR(F175*(FaktorAktivnosti),"") ->  | K175: =IFERROR(IF(Standardno,J175/KalPoFunti,J175/KalPoFunti/2.2),"") ->  | L175: =IFERROR(TežinaKojuTrebaIzgubitiPovećati-K175,"") ->  | M175: =IFERROR(IF(B174<>"",L175/(TežinaKojuTrebaIzgubitiPovećati),""),"") -> 
F176: =IFERROR(BMRPrilikomTrčanja,"") ->  | G176: =IFERROR(IF(K175>0,F175*FaktorAktivnosti+IF(CiljnaTelesnaTežina="Održavanje",0,IF(CiljnaTelesnaTežina="SMANJI",-500,IF(CiljnaTelesnaTežina="Povećaj",500))),""),"") ->  | H176: =IFERROR(F176*(FaktorAktivnosti),"") ->  | K176: =IFERROR(IF(Standardno,J176/KalPoFunti,J176/KalPoFunti/2.2),"") ->  | L176: =IFERROR(TežinaKojuTrebaIzgubitiPovećati-K176,"") ->  | M176: =IFERROR(IF(B175<>"",L176/(TežinaKojuTrebaIzgubitiPovećati),""),"") -> 
F177: =IFERROR(BMRPrilikomTrčanja,"") ->  | G177: =IFERROR(IF(K176>0,F176*FaktorAktivnosti+IF(CiljnaTelesnaTežina="Održavanje",0,IF(CiljnaTelesnaTežina="SMANJI",-500,IF(CiljnaTelesnaTežina="Povećaj",500))),""),"") ->  | H177: =IFERROR(F177*(FaktorAktivnosti),"") ->  | K177: =IFERROR(IF(Standardno,J177/KalPoFunti,J177/KalPoFunti/2.2),"") ->  | L177: =IFERROR(TežinaKojuTrebaIzgubitiPovećati-K177,"") ->  | M177: =IFERROR(IF(B176<>"",L177/(TežinaKojuTrebaIzgubitiPovećati),""),"") -> 
F178: =IFERROR(BMRPrilikomTrčanja,"") ->  | G178: =IFERROR(IF(K177>0,F177*FaktorAktivnosti+IF(CiljnaTelesnaTežina="Održavanje",0,IF(CiljnaTelesnaTežina="SMANJI",-500,IF(CiljnaTelesnaTežina="Povećaj",500))),""),"") ->  | H178: =IFERROR(F178*(FaktorAktivnosti),"") ->  | K178: =IFERROR(IF(Standardno,J178/KalPoFunti,J178/KalPoFunti/2.2),"") ->  | L178: =IFERROR(TežinaKojuTrebaIzgubitiPovećati-K178,"") ->  | M178: =IFERROR(IF(B177<>"",L178/(TežinaKojuTrebaIzgubitiPovećati),""),"") -> 
F179: =IFERROR(BMRPrilikomTrčanja,"") ->  | G179: =IFERROR(IF(K178>0,F178*FaktorAktivnosti+IF(CiljnaTelesnaTežina="Održavanje",0,IF(CiljnaTelesnaTežina="SMANJI",-500,IF(CiljnaTelesnaTežina="Povećaj",500))),""),"") ->  | H179: =IFERROR(F179*(FaktorAktivnosti),"") ->  | K179: =IFERROR(IF(Standardno,J179/KalPoFunti,J179/KalPoFunti/2.2),"") ->  | L179: =IFERROR(TežinaKojuTrebaIzgubitiPovećati-K179,"") ->  | M179: =IFERROR(IF(B178<>"",L179/(TežinaKojuTrebaIzgubitiPovećati),""),"") -> 
F180: =IFERROR(BMRPrilikomTrčanja,"") ->  | G180: =IFERROR(IF(K179>0,F179*FaktorAktivnosti+IF(CiljnaTelesnaTežina="Održavanje",0,IF(CiljnaTelesnaTežina="SMANJI",-500,IF(CiljnaTelesnaTežina="Povećaj",500))),""),"") ->  | H180: =IFERROR(F180*(FaktorAktivnosti),"") ->  | K180: =IFERROR(IF(Standardno,J180/KalPoFunti,J180/KalPoFunti/2.2),"") ->  | L180: =IFERROR(TežinaKojuTrebaIzgubitiPovećati-K180,"") ->  | M180: =IFERROR(IF(B179<>"",L180/(TežinaKojuTrebaIzgubitiPovećati),""),"") -> 
F181: =IFERROR(BMRPrilikomTrčanja,"") ->  | G181: =IFERROR(IF(K180>0,F180*FaktorAktivnosti+IF(CiljnaTelesnaTežina="Održavanje",0,IF(CiljnaTelesnaTežina="SMANJI",-500,IF(CiljnaTelesnaTežina="Povećaj",500))),""),"") ->  | H181: =IFERROR(F181*(FaktorAktivnosti),"") ->  | K181: =IFERROR(IF(Standardno,J181/KalPoFunti,J181/KalPoFunti/2.2),"") ->  | L181: =IFERROR(TežinaKojuTrebaIzgubitiPovećati-K181,"") ->  | M181: =IFERROR(IF(B180<>"",L181/(TežinaKojuTrebaIzgubitiPovećati),""),"") -> 
F182: =IFERROR(BMRPrilikomTrčanja,"") ->  | G182: =IFERROR(IF(K181>0,F181*FaktorAktivnosti+IF(CiljnaTelesnaTežina="Održavanje",0,IF(CiljnaTelesnaTežina="SMANJI",-500,IF(CiljnaTelesnaTežina="Povećaj",500))),""),"") ->  | H182: =IFERROR(F182*(FaktorAktivnosti),"") ->  | K182: =IFERROR(IF(Standardno,J182/KalPoFunti,J182/KalPoFunti/2.2),"") ->  | L182: =IFERROR(TežinaKojuTrebaIzgubitiPovećati-K182,"") ->  | M182: =IFERROR(IF(B181<>"",L182/(TežinaKojuTrebaIzgubitiPovećati),""),"") -> 
F183: =IFERROR(BMRPrilikomTrčanja,"") ->  | G183: =IFERROR(IF(K182>0,F182*FaktorAktivnosti+IF(CiljnaTelesnaTežina="Održavanje",0,IF(CiljnaTelesnaTežina="SMANJI",-500,IF(CiljnaTelesnaTežina="Povećaj",500))),""),"") ->  | H183: =IFERROR(F183*(FaktorAktivnosti),"") ->  | K183: =IFERROR(IF(Standardno,J183/KalPoFunti,J183/KalPoFunti/2.2),"") ->  | L183: =IFERROR(TežinaKojuTrebaIzgubitiPovećati-K183,"") ->  | M183: =IFERROR(IF(B182<>"",L183/(TežinaKojuTrebaIzgubitiPovećati),""),"") -> 
F184: =IFERROR(BMRPrilikomTrčanja,"") ->  | G184: =IFERROR(IF(K183>0,F183*FaktorAktivnosti+IF(CiljnaTelesnaTežina="Održavanje",0,IF(CiljnaTelesnaTežina="SMANJI",-500,IF(CiljnaTelesnaTežina="Povećaj",500))),""),"") ->  | H184: =IFERROR(F184*(FaktorAktivnosti),"") ->  | K184: =IFERROR(IF(Standardno,J184/KalPoFunti,J184/KalPoFunti/2.2),"") ->  | L184: =IFERROR(TežinaKojuTrebaIzgubitiPovećati-K184,"") ->  | M184: =IFERROR(IF(B183<>"",L184/(TežinaKojuTrebaIzgubitiPovećati),""),"") -> 
F185: =IFERROR(BMRPrilikomTrčanja,"") ->  | G185: =IFERROR(IF(K184>0,F184*FaktorAktivnosti+IF(CiljnaTelesnaTežina="Održavanje",0,IF(CiljnaTelesnaTežina="SMANJI",-500,IF(CiljnaTelesnaTežina="Povećaj",500))),""),"") ->  | H185: =IFERROR(F185*(FaktorAktivnosti),"") ->  | K185: =IFERROR(IF(Standardno,J185/KalPoFunti,J185/KalPoFunti/2.2),"") ->  | L185: =IFERROR(TežinaKojuTrebaIzgubitiPovećati-K185,"") ->  | M185: =IFERROR(IF(B184<>"",L185/(TežinaKojuTrebaIzgubitiPovećati),""),"") -> 
F186: =IFERROR(BMRPrilikomTrčanja,"") ->  | G186: =IFERROR(IF(K185>0,F185*FaktorAktivnosti+IF(CiljnaTelesnaTežina="Održavanje",0,IF(CiljnaTelesnaTežina="SMANJI",-500,IF(CiljnaTelesnaTežina="Povećaj",500))),""),"") ->  | H186: =IFERROR(F186*(FaktorAktivnosti),"") ->  | K186: =IFERROR(IF(Standardno,J186/KalPoFunti,J186/KalPoFunti/2.2),"") ->  | L186: =IFERROR(TežinaKojuTrebaIzgubitiPovećati-K186,"") ->  | M186: =IFERROR(IF(B185<>"",L186/(TežinaKojuTrebaIzgubitiPovećati),""),"") -> 
F187: =IFERROR(BMRPrilikomTrčanja,"") ->  | G187: =IFERROR(IF(K186>0,F186*FaktorAktivnosti+IF(CiljnaTelesnaTežina="Održavanje",0,IF(CiljnaTelesnaTežina="SMANJI",-500,IF(CiljnaTelesnaTežina="Povećaj",500))),""),"") ->  | H187: =IFERROR(F187*(FaktorAktivnosti),"") ->  | K187: =IFERROR(IF(Standardno,J187/KalPoFunti,J187/KalPoFunti/2.2),"") ->  | L187: =IFERROR(TežinaKojuTrebaIzgubitiPovećati-K187,"") ->  | M187: =IFERROR(IF(B186<>"",L187/(TežinaKojuTrebaIzgubitiPovećati),""),"") -> 
F188: =IFERROR(BMRPrilikomTrčanja,"") ->  | G188: =IFERROR(IF(K187>0,F187*FaktorAktivnosti+IF(CiljnaTelesnaTežina="Održavanje",0,IF(CiljnaTelesnaTežina="SMANJI",-500,IF(CiljnaTelesnaTežina="Povećaj",500))),""),"") ->  | H188: =IFERROR(F188*(FaktorAktivnosti),"") ->  | K188: =IFERROR(IF(Standardno,J188/KalPoFunti,J188/KalPoFunti/2.2),"") ->  | L188: =IFERROR(TežinaKojuTrebaIzgubitiPovećati-K188,"") ->  | M188: =IFERROR(IF(B187<>"",L188/(TežinaKojuTrebaIzgubitiPovećati),""),"") -> 
F189: =IFERROR(BMRPrilikomTrčanja,"") ->  | G189: =IFERROR(IF(K188>0,F188*FaktorAktivnosti+IF(CiljnaTelesnaTežina="Održavanje",0,IF(CiljnaTelesnaTežina="SMANJI",-500,IF(CiljnaTelesnaTežina="Povećaj",500))),""),"") ->  | H189: =IFERROR(F189*(FaktorAktivnosti),"") ->  | K189: =IFERROR(IF(Standardno,J189/KalPoFunti,J189/KalPoFunti/2.2),"") ->  | L189: =IFERROR(TežinaKojuTrebaIzgubitiPovećati-K189,"") ->  | M189: =IFERROR(IF(B188<>"",L189/(TežinaKojuTrebaIzgubitiPovećati),""),"") -> 
F190: =IFERROR(BMRPrilikomTrčanja,"") ->  | G190: =IFERROR(IF(K189>0,F189*FaktorAktivnosti+IF(CiljnaTelesnaTežina="Održavanje",0,IF(CiljnaTelesnaTežina="SMANJI",-500,IF(CiljnaTelesnaTežina="Povećaj",500))),""),"") ->  | H190: =IFERROR(F190*(FaktorAktivnosti),"") ->  | K190: =IFERROR(IF(Standardno,J190/KalPoFunti,J190/KalPoFunti/2.2),"") ->  | L190: =IFERROR(TežinaKojuTrebaIzgubitiPovećati-K190,"") ->  | M190: =IFERROR(IF(B189<>"",L190/(TežinaKojuTrebaIzgubitiPovećati),""),"") -> 
F191: =IFERROR(BMRPrilikomTrčanja,"") ->  | G191: =IFERROR(IF(K190>0,F190*FaktorAktivnosti+IF(CiljnaTelesnaTežina="Održavanje",0,IF(CiljnaTelesnaTežina="SMANJI",-500,IF(CiljnaTelesnaTežina="Povećaj",500))),""),"") ->  | H191: =IFERROR(F191*(FaktorAktivnosti),"") ->  | K191: =IFERROR(IF(Standardno,J191/KalPoFunti,J191/KalPoFunti/2.2),"") ->  | L191: =IFERROR(TežinaKojuTrebaIzgubitiPovećati-K191,"") ->  | M191: =IFERROR(IF(B190<>"",L191/(TežinaKojuTrebaIzgubitiPovećati),""),"") -> 
F192: =IFERROR(BMRPrilikomTrčanja,"") ->  | G192: =IFERROR(IF(K191>0,F191*FaktorAktivnosti+IF(CiljnaTelesnaTežina="Održavanje",0,IF(CiljnaTelesnaTežina="SMANJI",-500,IF(CiljnaTelesnaTežina="Povećaj",500))),""),"") ->  | H192: =IFERROR(F192*(FaktorAktivnosti),"") ->  | K192: =IFERROR(IF(Standardno,J192/KalPoFunti,J192/KalPoFunti/2.2),"") ->  | L192: =IFERROR(TežinaKojuTrebaIzgubitiPovećati-K192,"") ->  | M192: =IFERROR(IF(B191<>"",L192/(TežinaKojuTrebaIzgubitiPovećati),""),"") -> 
F193: =IFERROR(BMRPrilikomTrčanja,"") ->  | G193: =IFERROR(IF(K192>0,F192*FaktorAktivnosti+IF(CiljnaTelesnaTežina="Održavanje",0,IF(CiljnaTelesnaTežina="SMANJI",-500,IF(CiljnaTelesnaTežina="Povećaj",500))),""),"") ->  | H193: =IFERROR(F193*(FaktorAktivnosti),"") ->  | K193: =IFERROR(IF(Standardno,J193/KalPoFunti,J193/KalPoFunti/2.2),"") ->  | L193: =IFERROR(TežinaKojuTrebaIzgubitiPovećati-K193,"") ->  | M193: =IFERROR(IF(B192<>"",L193/(TežinaKojuTrebaIzgubitiPovećati),""),"") -> 
F194: =IFERROR(BMRPrilikomTrčanja,"") ->  | G194: =IFERROR(IF(K193>0,F193*FaktorAktivnosti+IF(CiljnaTelesnaTežina="Održavanje",0,IF(CiljnaTelesnaTežina="SMANJI",-500,IF(CiljnaTelesnaTežina="Povećaj",500))),""),"") ->  | H194: =IFERROR(F194*(FaktorAktivnosti),"") ->  | K194: =IFERROR(IF(Standardno,J194/KalPoFunti,J194/KalPoFunti/2.2),"") ->  | L194: =IFERROR(TežinaKojuTrebaIzgubitiPovećati-K194,"") ->  | M194: =IFERROR(IF(B193<>"",L194/(TežinaKojuTrebaIzgubitiPovećati),""),"") -> 
F195: =IFERROR(BMRPrilikomTrčanja,"") ->  | G195: =IFERROR(IF(K194>0,F194*FaktorAktivnosti+IF(CiljnaTelesnaTežina="Održavanje",0,IF(CiljnaTelesnaTežina="SMANJI",-500,IF(CiljnaTelesnaTežina="Povećaj",500))),""),"") ->  | H195: =IFERROR(F195*(FaktorAktivnosti),"") ->  | K195: =IFERROR(IF(Standardno,J195/KalPoFunti,J195/KalPoFunti/2.2),"") ->  | L195: =IFERROR(TežinaKojuTrebaIzgubitiPovećati-K195,"") ->  | M195: =IFERROR(IF(B194<>"",L195/(TežinaKojuTrebaIzgubitiPovećati),""),"") -> 
F196: =IFERROR(BMRPrilikomTrčanja,"") ->  | G196: =IFERROR(IF(K195>0,F195*FaktorAktivnosti+IF(CiljnaTelesnaTežina="Održavanje",0,IF(CiljnaTelesnaTežina="SMANJI",-500,IF(CiljnaTelesnaTežina="Povećaj",500))),""),"") ->  | H196: =IFERROR(F196*(FaktorAktivnosti),"") ->  | K196: =IFERROR(IF(Standardno,J196/KalPoFunti,J196/KalPoFunti/2.2),"") ->  | L196: =IFERROR(TežinaKojuTrebaIzgubitiPovećati-K196,"") ->  | M196: =IFERROR(IF(B195<>"",L196/(TežinaKojuTrebaIzgubitiPovećati),""),"") -> 
F197: =IFERROR(BMRPrilikomTrčanja,"") ->  | G197: =IFERROR(IF(K196>0,F196*FaktorAktivnosti+IF(CiljnaTelesnaTežina="Održavanje",0,IF(CiljnaTelesnaTežina="SMANJI",-500,IF(CiljnaTelesnaTežina="Povećaj",500))),""),"") ->  | H197: =IFERROR(F197*(FaktorAktivnosti),"") ->  | K197: =IFERROR(IF(Standardno,J197/KalPoFunti,J197/KalPoFunti/2.2),"") ->  | L197: =IFERROR(TežinaKojuTrebaIzgubitiPovećati-K197,"") ->  | M197: =IFERROR(IF(B196<>"",L197/(TežinaKojuTrebaIzgubitiPovećati),""),"") -> 
F198: =IFERROR(BMRPrilikomTrčanja,"") ->  | G198: =IFERROR(IF(K197>0,F197*FaktorAktivnosti+IF(CiljnaTelesnaTežina="Održavanje",0,IF(CiljnaTelesnaTežina="SMANJI",-500,IF(CiljnaTelesnaTežina="Povećaj",500))),""),"") ->  | H198: =IFERROR(F198*(FaktorAktivnosti),"") ->  | K198: =IFERROR(IF(Standardno,J198/KalPoFunti,J198/KalPoFunti/2.2),"") ->  | L198: =IFERROR(TežinaKojuTrebaIzgubitiPovećati-K198,"") ->  | M198: =IFERROR(IF(B197<>"",L198/(TežinaKojuTrebaIzgubitiPovećati),""),"") -> 
F199: =IFERROR(BMRPrilikomTrčanja,"") ->  | G199: =IFERROR(IF(K198>0,F198*FaktorAktivnosti+IF(CiljnaTelesnaTežina="Održavanje",0,IF(CiljnaTelesnaTežina="SMANJI",-500,IF(CiljnaTelesnaTežina="Povećaj",500))),""),"") ->  | H199: =IFERROR(F199*(FaktorAktivnosti),"") ->  | K199: =IFERROR(IF(Standardno,J199/KalPoFunti,J199/KalPoFunti/2.2),"") ->  | L199: =IFERROR(TežinaKojuTrebaIzgubitiPovećati-K199,"") ->  | M199: =IFERROR(IF(B198<>"",L199/(TežinaKojuTrebaIzgubitiPovećati),""),"") -> 
F200: =IFERROR(BMRPrilikomTrčanja,"") ->  | G200: =IFERROR(IF(K199>0,F199*FaktorAktivnosti+IF(CiljnaTelesnaTežina="Održavanje",0,IF(CiljnaTelesnaTežina="SMANJI",-500,IF(CiljnaTelesnaTežina="Povećaj",500))),""),"") ->  | H200: =IFERROR(F200*(FaktorAktivnosti),"") ->  | K200: =IFERROR(IF(Standardno,J200/KalPoFunti,J200/KalPoFunti/2.2),"") ->  | L200: =IFERROR(TežinaKojuTrebaIzgubitiPovećati-K200,"") ->  | M200: =IFERROR(IF(B199<>"",L200/(TežinaKojuTrebaIzgubitiPovećati),""),"") -> 
... 798 more rows

Sheet Pronalaženje tipa vežbe (hidden)
B1: Pronalaženje tipa vežbe
B2: Ovaj list bi trebalo da ostane skriven.
B3: TIP VEŽBE | C3: OPIS | D3: FAKTOR
B4: SEDEĆI | C4: MALO VEŽBANJA ILI SKORO BEZ VEŽBANJA | D4: 1.2
B5: LAGANA AKTIVNOST | C5: VEŽBANJE 1–2 DANA SEDMIČNO | D5: 1.375
B6: UMERENA AKTIVNOST | C6: VEŽBANJE 3–5 DANA SEDMIČNO | D6: 1.55
B7: VEOMA AKTIVNO | C7: VEŽBANJE 6–7 DANA SEDMIČNO | D7: 1.725
B8: IZUZETNO AKTIVNO | C8: VEŽBANJE 6–7 DANA SEDMIČNO + FIZIČKI POSAO/2X TRENING | D8: 1.9
